Workbook

Sheet Vejledning
A1: Generelt
A2: Excel filerne kan bruges til at beregne både lærlinge og øvrige medarbejdere - i samme excel fil.
A4: Alle filer er låst, og der kan kun skrives i de gule felter.
A6: Ferie,- SH,- feriefridagsgodtgørelse, ferietillæg samt pension af den lønsum, der opsamles i kolonne J, styres ved at der sættes et tal (1,2,3,4) i de respektive kolonner, hvorefter beløbet beregnes.
A8: Der hvor der er procentforhøjelse i løbet af et kalenderår, styres det ved at skrive det tal (1,2,3,4) der står udfor procentsatsen, i den linje hvor beregningen skal ske.
A10: Arkene: 2010 - 2023.
A12: Arkene er identiske. (bortset fra de forskellige % – satser.)
A14: De år, hvor der i løbet af året sker ændringer af SH og feriefridagsprocent står oplysningen om datoen i kolonne C.
A16: Er der brug for beregninger før 2010, på Byggegruppens overenskomster med Dansk Byggeri eller Glarmesterlauget, henvend dig i Byggegruppen.
A18: Krav om manglende løn
A20: I tilfælde hvor virksomheden ikke har betalt løn skal kravet opgøres ved at timerne skrives i kolonne D (Krav om udbetaling af timer), og satsen skal skrives i kolonne E (Krav om sats pr. time). Eksempelvis ved opgørelse af LG krav.
A22: Såfremt der er uoverensstemmelse mellem virksomheden og medarbejderen om antallet af timer eller satsen pr. time, skal det udbetalte antal timer skrives i kolonne F (Udbetalt timer), og det antal timer der er krav om skal skrives i kolonne D (Krav om udbetaling af timer) og tilsvarende hvis der er uoverensstemmelse om sats pr. time og krav pr. time skal kravet skrives i kolonne E (Krav om sats pr. time) og den udbetalte sats pr. time i kolonne G (Udbetalt sats pr. time).
A24: Hvis der eksempelvis kun er uoverensstemmelse om løn satsen og ikke om timerne skal timeantallet der er enighed om skrives både i kolonnes D og F.
A26: Hvis der ikke er uoverensstemmelse om sats eller timer skal kolonne F og G benyttes.
A28: Beregningen af Ferie,- SH,- feriefridagsgodtgørelse, ferietillæg samt pension, beregnes af summen i kolonne K.
A30: Hvis det er dokumenteret at der i forbindelse med beregning af skyldig løn er udbetalt á conto på check eller kontant, skal beløbet skrives i arket "Udbetalt løn a´conto", og vil blive opsamlet for hvert år, og modregnet i den samlede beregning i fanen ”opgørelse”.
A33: Kolonneforklaring: Indkomst, hvoraf der kun beregnes pension
A35: Beløb skrevet i denne kolonne beregnes der kun pension af. Det kan f.eks. være feriegodtgørelse under sygdom og tilskadekomst, samt skattepligtige kørepenge.
A37: Den sum der indtastes i kolonne I, opsamles automatisk i kolonne R, sammen med de øvrige pensionsberettigede beløb, men beregnes først når der tastes 1 i kolonne S og U.
A39: Kolonneforklaring: Pension
A41: Summen der beregnes pension af fremgår af summen i kolonne Q
A43: Der beregnes først arbejdsgiverbetalt pension når der indtastes 1 (fra 2020 eller 2) i kolonne R, og den beregnede sum fremgår af kolonne S.
A45: Og der beregnes først medarbejderbetalt pension når der indtastes 1 (fra 2020 eller 2) i kolonne T, og den beregnede sum fremgår af kolonne U.
A47: Og den samlede sum fremgår af kolonne V.
A49: Arkene: Feriekort á conto / SH á conto / B & A indbetaling
A51: Skemaerne er beregnet på at de dokumenterede indbetalte/udbetalte beløb, med hensyn til:
A53: Ferietillæg (fanen ”Ferietillæg – á conto”) samt
A54: Feriepengegodtgørelse der er registreret på feriepenge info angives i fanen ”Feriekort – á conto”.
A55: Feriefridags-, og SH godtgørelse der er registret som udbetalt aconto på lønsedlen angives i fanen ”SH og FF á conto”
A56: Pension der er registret på medlemmets konto i pensionselskabet angives i fanen "Pension"
A58: Alle indtastningerne i de 4 nævnte faner opsamlet for hvert år og modregnes i den samlede beregning i fanen ”opgørelse”.

Sheet 2010
P1: Særlig ops. | R1: Beregn | S1: Pension | T1: Beregn | U1: Pension | V1: Pension
O2: 2 | P2: 0.01 | R2: Pension | S2: (A) | T2: Pension | U2: (B) | V2: I alt
M3: 2 | N3: 0.115 | Q3: Pensions
K4: Beregn | M4: Beregn | N4: Ferie- | P4: SH-, FF- | Q4: grundlag
D5: Krav om | E5: Krav | H5: Indkomst | J5: løn ialt | K5: ferie- | L5: Ferie- | M5: Ferie- | N5: godtgørelse | P5: godtgørelse
A6: Uge nr. | C6: 2010-01-01 | D6: udbetaling | E6: om | G6: Udbetalt | H6: hvoraf der | J6: hvoraf der | K6: tillæg | L6: tillæg | M6: godtg. | N6: i kr. | O6: 1 | P6: 0.069
D7: af | E7: sats | F7: Timer | G7: sats | H7: kun beregnes | J7: beregnes | K7: 1 | L7: 0.01 | M7: 1 | N7: 0.125 | Q7: 2010-01-01 | R7: 1 | S7: 0.0815 | T7: 1 | U7: 0.04 | V7: =SUM(S7+U7) -> 0.1215
A8: fra | B8: til | C8: Bemærkninger | D8: timer | E8: pr. time | F8: udbetalt | G8: pr. time | H8: pension | I8: Skyldig løn | J8: ferietillæg/godtg. | K8: tast | L8: i kr. | M8: tast | N8: i kr. | O8: tast | P8: i kr. | Q8: i kr. | R8: tast | S8: i kr. | T8: tast | U8: i kr.
I9: =IF((D9*E9>0),(D9*E9)-(F9*G9),IF((D9*E9<0),(D9*E9)-(F9*G9),0)) -> 0 | J9: =IF(AND(E9*D9=0,F9*G9>0),F9*G9,(D9*E9)) -> 0 | L9: =SUM(IF(K9=1,J9*$L$7,J9*0%)) -> 0 | N9: =SUM(IF(M9=1,J9*$N$7,IF(M9=2,J9*$N$3))) -> 0 | P9: =SUM(IF(O9=2,J9*$P$2,IF(O9=1,J9*$P$6))) -> 0 | Q9: =SUM(H9,J9,L9,N9,P9) -> 0 | S9: =IF($R9=1,$Q9*$S$7,$R9*0) -> 0 | U9: =IF($T9=1,$Q9*$U$7,$T9*0) -> 0 | V9: =SUM(S9,U9) -> 0
I10: 0 | J10: 0 | L10: 0 | N10: 0 | P10: =SUM(IF(O10=2,J10*$P$2,IF(O10=1,J10*$P$6))) -> 0 | Q10: =SUM(H10,J10,L10,N10,P10) -> 0 | S10: =IF($R10=1,$Q10*$S$7,$R10*0) -> 0 | U10: =IF($T10=1,$Q10*$U$7,$T10*0) -> 0 | V10: 0
I11: 0 | J11: 0 | L11: 0 | N11: 0 | P11: 0 | Q11: 0 | S11: 0 | U11: 0 | V11: 0
I12: 0 | J12: 0 | L12: 0 | N12: 0 | P12: 0 | Q12: 0 | S12: 0 | U12: 0 | V12: 0
I13: 0 | J13: 0 | L13: =SUM(IF(K13=1,J13*$L$7,J13*0%)) -> 0 | N13: 0 | P13: 0 | Q13: 0 | S13: 0 | U13: 0 | V13: 0
I14: 0 | J14: 0 | L14: 0 | N14: 0 | P14: 0 | Q14: 0 | S14: 0 | U14: 0 | V14: 0
I15: 0 | J15: 0 | L15: 0 | N15: 0 | P15: 0 | Q15: 0 | S15: 0 | U15: 0 | V15: 0
I16: 0 | J16: 0 | L16: 0 | N16: 0 | P16: 0 | Q16: 0 | S16: 0 | U16: 0 | V16: 0
I17: 0 | J17: 0 | L17: 0 | N17: 0 | P17: 0 | Q17: 0 | S17: 0 | U17: 0 | V17: 0
I18: 0 | J18: 0 | L18: 0 | N18: 0 | P18: 0 | Q18: 0 | S18: 0 | U18: 0 | V18: 0
I19: 0 | J19: 0 | L19: 0 | N19: 0 | P19: 0 | Q19: 0 | S19: 0 | U19: 0 | V19: 0
I20: 0 | J20: 0 | L20: 0 | N20: 0 | P20: 0 | Q20: 0 | S20: 0 | U20: 0 | V20: 0
I21: 0 | J21: 0 | L21: 0 | N21: 0 | P21: 0 | Q21: 0 | S21: 0 | U21: 0 | V21: 0
I22: 0 | J22: 0 | L22: 0 | N22: 0 | P22: 0 | Q22: 0 | S22: 0 | U22: 0 | V22: 0
I23: 0 | J23: 0 | L23: 0 | N23: 0 | P23: 0 | Q23: 0 | S23: 0 | U23: 0 | V23: 0
I24: 0 | J24: 0 | L24: 0 | N24: 0 | P24: 0 | Q24: 0 | S24: 0 | U24: 0 | V24: 0
I25: 0 | J25: 0 | L25: 0 | N25: 0 | P25: 0 | Q25: 0 | S25: 0 | U25: 0 | V25: 0
I26: 0 | J26: 0 | L26: 0 | N26: 0 | P26: 0 | Q26: 0 | S26: 0 | U26: 0 | V26: 0
I27: 0 | J27: 0 | L27: 0 | N27: 0 | P27: 0 | Q27: 0 | S27: 0 | U27: 0 | V27: 0
I28: 0 | J28: 0 | L28: 0 | N28: 0 | P28: 0 | Q28: 0 | S28: 0 | U28: 0 | V28: 0
I29: 0 | J29: 0 | L29: 0 | N29: 0 | P29: 0 | Q29: 0 | S29: 0 | U29: 0 | V29: 0
I30: 0 | J30: 0 | L30: 0 | N30: 0 | P30: 0 | Q30: 0 | S30: 0 | U30: 0 | V30: 0
I31: 0 | J31: 0 | L31: 0 | N31: 0 | P31: 0 | Q31: 0 | S31: 0 | U31: 0 | V31: 0
I32: 0 | J32: 0 | L32: 0 | N32: 0 | P32: 0 | Q32: 0 | S32: 0 | U32: 0 | V32: 0
I33: 0 | J33: 0 | L33: 0 | N33: 0 | P33: 0 | Q33: 0 | S33: 0 | U33: 0 | V33: 0
I34: 0 | J34: 0 | L34: 0 | N34: 0 | P34: 0 | Q34: 0 | S34: 0 | U34: 0 | V34: 0
I35: 0 | J35: 0 | L35: 0 | N35: 0 | P35: 0 | Q35: 0 | S35: 0 | U35: 0 | V35: 0
I36: 0 | J36: 0 | L36: 0 | N36: 0 | P36: 0 | Q36: 0 | S36: 0 | U36: 0 | V36: 0
I37: 0 | J37: 0 | L37: 0 | N37: 0 | P37: 0 | Q37: 0 | S37: 0 | U37: 0 | V37: 0
I38: 0 | J38: 0 | L38: 0 | N38: 0 | P38: 0 | Q38: 0 | S38: 0 | U38: 0 | V38: 0
I39: 0 | J39: 0 | L39: 0 | N39: 0 | P39: 0 | Q39: 0 | S39: 0 | U39: 0 | V39: 0
I40: 0 | J40: 0 | L40: 0 | N40: 0 | P40: 0 | Q40: 0 | S40: 0 | U40: 0 | V40: 0
I41: 0 | J41: 0 | L41: 0 | N41: 0 | P41: 0 | Q41: 0 | S41: 0 | U41: 0 | V41: 0
I42: 0 | J42: 0 | L42: 0 | N42: 0 | P42: 0 | Q42: 0 | S42: 0 | U42: 0 | V42: 0
I43: 0 | J43: 0 | L43: 0 | N43: 0 | P43: 0 | Q43: 0 | S43: 0 | U43: 0 | V43: 0
I44: 0 | J44: 0 | L44: 0 | N44: 0 | P44: 0 | Q44: 0 | S44: 0 | U44: 0 | V44: 0
I45: 0 | J45: 0 | L45: =SUM(IF(K45=1,J45*$L$7,J45*0%)) -> 0 | N45: 0 | P45: 0 | Q45: 0 | S45: 0 | U45: 0 | V45: 0
I46: 0 | J46: 0 | L46: 0 | N46: 0 | P46: 0 | Q46: 0 | S46: 0 | U46: 0 | V46: 0
I47: 0 | J47: 0 | L47: 0 | N47: 0 | P47: 0 | Q47: 0 | S47: 0 | U47: 0 | V47: 0
I48: 0 | J48: 0 | L48: 0 | N48: 0 | P48: 0 | Q48: 0 | S48: 0 | U48: 0 | V48: 0
I49: 0 | J49: 0 | L49: 0 | N49: 0 | P49: 0 | Q49: 0 | S49: 0 | U49: 0 | V49: 0
I50: 0 | J50: 0 | L50: 0 | N50: 0 | P50: 0 | Q50: 0 | S50: 0 | U50: 0 | V50: 0
I51: 0 | J51: 0 | L51: 0 | N51: 0 | P51: 0 | Q51: 0 | S51: 0 | U51: 0 | V51: 0
I52: 0 | J52: 0 | L52: 0 | N52: 0 | P52: 0 | Q52: 0 | S52: 0 | U52: 0 | V52: 0
I53: 0 | J53: 0 | L53: 0 | N53: 0 | P53: 0 | Q53: 0 | S53: 0 | U53: 0 | V53: 0
I54: 0 | J54: 0 | L54: 0 | N54: 0 | P54: 0 | Q54: 0 | S54: 0 | U54: 0 | V54: 0
I55: 0 | J55: 0 | L55: 0 | N55: 0 | P55: 0 | Q55: 0 | S55: 0 | U55: 0 | V55: 0
I56: 0 | J56: 0 | L56: 0 | N56: 0 | P56: 0 | Q56: 0 | S56: 0 | U56: 0 | V56: 0
I57: 0 | J57: 0 | L57: 0 | N57: 0 | P57: 0 | Q57: 0 | S57: 0 | U57: 0 | V57: 0
I58: 0 | J58: 0 | L58: 0 | N58: 0 | P58: 0 | Q58: 0 | S58: 0 | U58: 0 | V58: 0
I59: 0 | J59: 0 | L59: 0 | N59: 0 | P59: 0 | Q59: 0 | S59: 0 | U59: 0 | V59: 0
I60: 0 | J60: 0 | L60: 0 | N60: 0 | P60: 0 | Q60: 0 | S60: 0 | U60: 0 | V60: 0
I61: 0 | J61: 0 | L61: 0 | N61: 0 | P61: 0 | Q61: 0 | S61: 0 | U61: 0 | V61: 0
I62: 0 | J62: 0 | L62: 0 | N62: 0 | P62: 0 | Q62: 0 | S62: 0 | U62: 0 | V62: 0
D64: =SUM(D9:D62) -> 0 | F64: =SUM(F9:F62) -> 0 | I64: =SUM(I9:I62) -> 0 | J64: =SUM(J9:J62) -> 0 | L64: =SUM(L9:L62) -> 0 | N64: =SUM(N9:N62) -> 0 | P64: =SUM(P9:P62) -> 0 | Q64: =SUM(Q9:Q62) -> 0 | S64: =SUM(S9:S62) -> 0 | U64: =SUM(U9:U62) -> 0 | V64: =SUM(V9:V62) -> 0

Sheet 2011
P1: Særlig ops. | R1: Beregn | S1: Pension | T1: Beregn | U1: Pension | V1: Pension
C2: 2011-01-01 | O2: 2 | P2: 0.01 | R2: Pension | S2: (A) | T2: Pension | U2: (B) | V2: I alt
M3: 2 | N3: 0.115 | Q3: Pensions
K4: Beregn | M4: Beregn | N4: Ferie- | P4: SH-, FF- | Q4: grundlag
D5: Krav om | E5: Krav | H5: Indkomst | J5: løn ialt | K5: ferie- | L5: Ferie- | M5: Ferie- | N5: godtgørelse | P5: godtgørelse
A6: Uge nr. | C6: 2011-01-01 | D6: udbetaling | E6: om | G6: Udbetalt | H6: hvoraf der | J6: hvoraf der | K6: tillæg | L6: tillæg | M6: godtg. | N6: i kr. | O6: 1 | P6: 0.069
D7: af | E7: sats | F7: Timer | G7: sats | H7: kun beregnes | J7: beregnes | K7: 1 | L7: 0.01 | M7: 1 | N7: 0.125 | Q7: 2011-01-01 | R7: 1 | S7: 0.0815 | T7: 1 | U7: 0.04 | V7: =SUM(S7+U7) -> 0.1215
A8: fra | B8: til | C8: Bemærkninger | D8: timer | E8: pr. time | F8: udbetalt | G8: pr. time | H8: pension | I8: Skyldig løn | J8: ferietillæg/godtg. | K8: tast | L8: i kr. | M8: tast | N8: i kr. | O8: tast | P8: i kr. | Q8: i kr. | R8: tast | S8: i kr. | T8: tast | U8: i kr.
I9: =IF((D9*E9>0),(D9*E9)-(F9*G9),IF((D9*E9<0),(D9*E9)-(F9*G9),0)) -> 0 | J9: =IF(AND(E9*D9=0,F9*G9>0),F9*G9,(D9*E9)) -> 0 | L9: =SUM(IF(K9=1,J9*$L$7,J9*0%)) -> 0 | N9: =SUM(IF(M9=1,J9*$N$7,IF(M9=2,J9*$N$3))) -> 0 | P9: =SUM(IF(O9=2,J9*$P$2,IF(O9=1,J9*$P$6))) -> 0 | Q9: =SUM(H9,J9,L9,N9,P9) -> 0 | S9: =IF($R9=1,$Q9*$S$7,$R9*0) -> 0 | U9: =IF($T9=1,$Q9*$U$7,$T9*0) -> 0 | V9: =SUM(S9,U9) -> 0
I10: 0 | J10: 0 | L10: 0 | N10: 0 | P10: =SUM(IF(O10=2,J10*$P$2,IF(O10=1,J10*$P$6))) -> 0 | Q10: =SUM(H10,J10,L10,N10,P10) -> 0 | S10: =IF($R10=1,$Q10*$S$7,$R10*0) -> 0 | U10: =IF($T10=1,$Q10*$U$7,$T10*0) -> 0 | V10: 0
I11: 0 | J11: 0 | L11: 0 | N11: 0 | P11: 0 | Q11: 0 | S11: 0 | U11: 0 | V11: 0
I12: 0 | J12: 0 | L12: 0 | N12: 0 | P12: 0 | Q12: 0 | S12: 0 | U12: 0 | V12: 0
I13: 0 | J13: 0 | L13: =SUM(IF(K13=1,J13*$L$7,J13*0%)) -> 0 | N13: 0 | P13: 0 | Q13: 0 | S13: 0 | U13: 0 | V13: 0
I14: 0 | J14: 0 | L14: 0 | N14: 0 | P14: 0 | Q14: 0 | S14: 0 | U14: 0 | V14: 0
I15: 0 | J15: 0 | L15: 0 | N15: 0 | P15: 0 | Q15: 0 | S15: 0 | U15: 0 | V15: 0
I16: 0 | J16: 0 | L16: 0 | N16: 0 | P16: 0 | Q16: 0 | S16: 0 | U16: 0 | V16: 0
I17: 0 | J17: 0 | L17: 0 | N17: 0 | P17: 0 | Q17: 0 | S17: 0 | U17: 0 | V17: 0
I18: 0 | J18: 0 | L18: 0 | N18: 0 | P18: 0 | Q18: 0 | S18: 0 | U18: 0 | V18: 0
I19: 0 | J19: 0 | L19: 0 | N19: 0 | P19: 0 | Q19: 0 | S19: 0 | U19: 0 | V19: 0
I20: 0 | J20: 0 | L20: 0 | N20: 0 | P20: 0 | Q20: 0 | S20: 0 | U20: 0 | V20: 0
I21: 0 | J21: 0 | L21: 0 | N21: 0 | P21: 0 | Q21: 0 | S21: 0 | U21: 0 | V21: 0
I22: 0 | J22: 0 | L22: 0 | N22: 0 | P22: 0 | Q22: 0 | S22: 0 | U22: 0 | V22: 0
I23: 0 | J23: 0 | L23: 0 | N23: 0 | P23: 0 | Q23: 0 | S23: 0 | U23: 0 | V23: 0
I24: 0 | J24: 0 | L24: 0 | N24: 0 | P24: 0 | Q24: 0 | S24: 0 | U24: 0 | V24: 0
I25: 0 | J25: 0 | L25: 0 | N25: 0 | P25: 0 | Q25: 0 | S25: 0 | U25: 0 | V25: 0
I26: 0 | J26: 0 | L26: 0 | N26: 0 | P26: 0 | Q26: 0 | S26: 0 | U26: 0 | V26: 0
I27: 0 | J27: 0 | L27: 0 | N27: 0 | P27: 0 | Q27: 0 | S27: 0 | U27: 0 | V27: 0
I28: 0 | J28: 0 | L28: 0 | N28: 0 | P28: 0 | Q28: 0 | S28: 0 | U28: 0 | V28: 0
I29: 0 | J29: 0 | L29: 0 | N29: 0 | P29: 0 | Q29: 0 | S29: 0 | U29: 0 | V29: 0
I30: 0 | J30: 0 | L30: 0 | N30: 0 | P30: 0 | Q30: 0 | S30: 0 | U30: 0 | V30: 0
I31: 0 | J31: 0 | L31: 0 | N31: 0 | P31: 0 | Q31: 0 | S31: 0 | U31: 0 | V31: 0
I32: 0 | J32: 0 | L32: 0 | N32: 0 | P32: 0 | Q32: 0 | S32: 0 | U32: 0 | V32: 0
I33: 0 | J33: 0 | L33: 0 | N33: 0 | P33: 0 | Q33: 0 | S33: 0 | U33: 0 | V33: 0
I34: 0 | J34: 0 | L34: 0 | N34: 0 | P34: 0 | Q34: 0 | S34: 0 | U34: 0 | V34: 0
I35: 0 | J35: 0 | L35: 0 | N35: 0 | P35: 0 | Q35: 0 | S35: 0 | U35: 0 | V35: 0
I36: 0 | J36: 0 | L36: 0 | N36: 0 | P36: 0 | Q36: 0 | S36: 0 | U36: 0 | V36: 0
I37: 0 | J37: 0 | L37: 0 | N37: 0 | P37: 0 | Q37: 0 | S37: 0 | U37: 0 | V37: 0
I38: 0 | J38: 0 | L38: 0 | N38: 0 | P38: 0 | Q38: 0 | S38: 0 | U38: 0 | V38: 0
I39: 0 | J39: 0 | L39: 0 | N39: 0 | P39: 0 | Q39: 0 | S39: 0 | U39: 0 | V39: 0
I40: 0 | J40: 0 | L40: 0 | N40: 0 | P40: 0 | Q40: 0 | S40: 0 | U40: 0 | V40: 0
I41: 0 | J41: 0 | L41: 0 | N41: 0 | P41: 0 | Q41: 0 | S41: 0 | U41: 0 | V41: 0
I42: 0 | J42: 0 | L42: 0 | N42: 0 | P42: 0 | Q42: 0 | S42: 0 | U42: 0 | V42: 0
I43: 0 | J43: 0 | L43: 0 | N43: 0 | P43: 0 | Q43: 0 | S43: 0 | U43: 0 | V43: 0
I44: 0 | J44: 0 | L44: 0 | N44: 0 | P44: 0 | Q44: 0 | S44: 0 | U44: 0 | V44: 0
I45: 0 | J45: 0 | L45: =SUM(IF(K45=1,J45*$L$7,J45*0%)) -> 0 | N45: 0 | P45: 0 | Q45: 0 | S45: 0 | U45: 0 | V45: 0
I46: 0 | J46: 0 | L46: 0 | N46: 0 | P46: 0 | Q46: 0 | S46: 0 | U46: 0 | V46: 0
I47: 0 | J47: 0 | L47: 0 | N47: 0 | P47: 0 | Q47: 0 | S47: 0 | U47: 0 | V47: 0
I48: 0 | J48: 0 | L48: 0 | N48: 0 | P48: 0 | Q48: 0 | S48: 0 | U48: 0 | V48: 0
I49: 0 | J49: 0 | L49: 0 | N49: 0 | P49: 0 | Q49: 0 | S49: 0 | U49: 0 | V49: 0
I50: 0 | J50: 0 | L50: 0 | N50: 0 | P50: 0 | Q50: 0 | S50: 0 | U50: 0 | V50: 0
I51: 0 | J51: 0 | L51: 0 | N51: 0 | P51: 0 | Q51: 0 | S51: 0 | U51: 0 | V51: 0
I52: 0 | J52: 0 | L52: 0 | N52: 0 | P52: 0 | Q52: 0 | S52: 0 | U52: 0 | V52: 0
I53: 0 | J53: 0 | L53: 0 | N53: 0 | P53: 0 | Q53: 0 | S53: 0 | U53: 0 | V53: 0
I54: 0 | J54: 0 | L54: 0 | N54: 0 | P54: 0 | Q54: 0 | S54: 0 | U54: 0 | V54: 0
I55: 0 | J55: 0 | L55: 0 | N55: 0 | P55: 0 | Q55: 0 | S55: 0 | U55: 0 | V55: 0
I56: 0 | J56: 0 | L56: 0 | N56: 0 | P56: 0 | Q56: 0 | S56: 0 | U56: 0 | V56: 0
I57: 0 | J57: 0 | L57: 0 | N57: 0 | P57: 0 | Q57: 0 | S57: 0 | U57: 0 | V57: 0
I58: 0 | J58: 0 | L58: 0 | N58: 0 | P58: 0 | Q58: 0 | S58: 0 | U58: 0 | V58: 0
I59: 0 | J59: 0 | L59: 0 | N59: 0 | P59: 0 | Q59: 0 | S59: 0 | U59: 0 | V59: 0
I60: 0 | J60: 0 | L60: 0 | N60: 0 | P60: 0 | Q60: 0 | S60: 0 | U60: 0 | V60: 0
I61: 0 | J61: 0 | L61: 0 | N61: 0 | P61: 0 | Q61: 0 | S61: 0 | U61: 0 | V61: 0
I62: 0 | J62: 0 | L62: 0 | N62: 0 | P62: 0 | Q62: 0 | S62: 0 | U62: 0 | V62: 0
D64: =SUM(D9:D62) -> 0 | F64: =SUM(F9:F62) -> 0 | I64: =SUM(I9:I62) -> 0 | J64: =SUM(J9:J62) -> 0 | L64: =SUM(L9:L62) -> 0 | N64: =SUM(N9:N62) -> 0 | P64: =SUM(P9:P62) -> 0 | Q64: =SUM(Q9:Q62) -> 0 | S64: =SUM(S9:S62) -> 0 | U64: =SUM(U9:U62) -> 0 | V64: =SUM(V9:V62) -> 0

Sheet 2012
P1: Særlig ops. | R1: Beregn | S1: Pension | T1: Beregn | U1: Pension | V1: Pension
C2: 2012-01-01 | O2: 2 | P2: 0.01 | R2: Pension | S2: (A) | T2: Pension | U2: (B) | V2: I alt
M3: 2 | N3: 0.115 | Q3: Pensions
K4: Beregn | M4: Beregn | N4: Ferie- | P4: SH-, FF- | Q4: grundlag
D5: Krav om | E5: Krav | H5: Indkomst | J5: løn ialt | K5: ferie- | L5: Ferie- | M5: Ferie- | N5: godtgørelse | P5: godtgørelse
A6: Uge nr. | C6: 2012-01-01 | D6: udbetaling | E6: om | G6: Udbetalt | H6: hvoraf der | J6: hvoraf der | K6: tillæg | L6: tillæg | M6: godtg. | N6: i kr. | O6: 1 | P6: 0.069
D7: af | E7: sats | F7: Timer | G7: sats | H7: kun beregnes | J7: beregnes | K7: 1 | L7: 0.01 | M7: 1 | N7: 0.125 | Q7: 2012-01-01 | R7: 1 | S7: 0.0815 | T7: 1 | U7: 0.04 | V7: =SUM(S7+U7) -> 0.1215
A8: fra | B8: til | C8: Bemærkninger | D8: timer | E8: pr. time | F8: udbetalt | G8: pr. time | H8: pension | I8: Skyldig løn | J8: ferietillæg/godtg. | K8: tast | L8: i kr. | M8: tast | N8: i kr. | O8: tast | P8: i kr. | Q8: i kr. | R8: tast | S8: i kr. | T8: tast | U8: i kr.
I9: =IF((D9*E9>0),(D9*E9)-(F9*G9),IF((D9*E9<0),(D9*E9)-(F9*G9),0)) -> 0 | J9: =IF(AND(E9*D9=0,F9*G9>0),F9*G9,(D9*E9)) -> 0 | L9: =SUM(IF(K9=1,J9*$L$7,J9*0%)) -> 0 | N9: =SUM(IF(M9=1,J9*$N$7,IF(M9=2,J9*$N$3))) -> 0 | P9: =SUM(IF(O9=2,J9*$P$2,IF(O9=1,J9*$P$6))) -> 0 | Q9: =SUM(H9,J9,L9,N9,P9) -> 0 | S9: =IF($R9=1,$Q9*$S$7,$R9*0) -> 0 | U9: =IF($T9=1,$Q9*$U$7,$T9*0) -> 0 | V9: =SUM(S9,U9) -> 0
I10: 0 | J10: 0 | L10: 0 | N10: 0 | P10: =SUM(IF(O10=2,J10*$P$2,IF(O10=1,J10*$P$6))) -> 0 | Q10: =SUM(H10,J10,L10,N10,P10) -> 0 | S10: =IF($R10=1,$Q10*$S$7,$R10*0) -> 0 | U10: =IF($T10=1,$Q10*$U$7,$T10*0) -> 0 | V10: 0
I11: 0 | J11: 0 | L11: 0 | N11: 0 | P11: 0 | Q11: 0 | S11: 0 | U11: 0 | V11: 0
I12: 0 | J12: 0 | L12: 0 | N12: 0 | P12: 0 | Q12: 0 | S12: 0 | U12: 0 | V12: 0
I13: 0 | J13: 0 | L13: =SUM(IF(K13=1,J13*$L$7,J13*0%)) -> 0 | N13: 0 | P13: 0 | Q13: 0 | S13: 0 | U13: 0 | V13: 0
I14: 0 | J14: 0 | L14: 0 | N14: 0 | P14: 0 | Q14: 0 | S14: 0 | U14: 0 | V14: 0
I15: 0 | J15: 0 | L15: 0 | N15: 0 | P15: 0 | Q15: 0 | S15: 0 | U15: 0 | V15: 0
I16: 0 | J16: 0 | L16: 0 | N16: 0 | P16: 0 | Q16: 0 | S16: 0 | U16: 0 | V16: 0
I17: 0 | J17: 0 | L17: 0 | N17: 0 | P17: 0 | Q17: 0 | S17: 0 | U17: 0 | V17: 0
I18: 0 | J18: 0 | L18: 0 | N18: 0 | P18: 0 | Q18: 0 | S18: 0 | U18: 0 | V18: 0
I19: 0 | J19: 0 | L19: 0 | N19: 0 | P19: 0 | Q19: 0 | S19: 0 | U19: 0 | V19: 0
I20: 0 | J20: 0 | L20: 0 | N20: 0 | P20: 0 | Q20: 0 | S20: 0 | U20: 0 | V20: 0
I21: 0 | J21: 0 | L21: 0 | N21: 0 | P21: 0 | Q21: 0 | S21: 0 | U21: 0 | V21: 0
I22: 0 | J22: 0 | L22: 0 | N22: 0 | P22: 0 | Q22: 0 | S22: 0 | U22: 0 | V22: 0
I23: 0 | J23: 0 | L23: 0 | N23: 0 | P23: 0 | Q23: 0 | S23: 0 | U23: 0 | V23: 0
I24: 0 | J24: 0 | L24: 0 | N24: 0 | P24: 0 | Q24: 0 | S24: 0 | U24: 0 | V24: 0
I25: 0 | J25: 0 | L25: 0 | N25: 0 | P25: 0 | Q25: 0 | S25: 0 | U25: 0 | V25: 0
I26: 0 | J26: 0 | L26: 0 | N26: 0 | P26: 0 | Q26: 0 | S26: 0 | U26: 0 | V26: 0
I27: 0 | J27: 0 | L27: 0 | N27: 0 | P27: 0 | Q27: 0 | S27: 0 | U27: 0 | V27: 0
I28: 0 | J28: 0 | L28: 0 | N28: 0 | P28: 0 | Q28: 0 | S28: 0 | U28: 0 | V28: 0
I29: 0 | J29: 0 | L29: 0 | N29: 0 | P29: 0 | Q29: 0 | S29: 0 | U29: 0 | V29: 0
I30: 0 | J30: 0 | L30: 0 | N30: 0 | P30: 0 | Q30: 0 | S30: 0 | U30: 0 | V30: 0
I31: 0 | J31: 0 | L31: 0 | N31: 0 | P31: 0 | Q31: 0 | S31: 0 | U31: 0 | V31: 0
I32: 0 | J32: 0 | L32: 0 | N32: 0 | P32: 0 | Q32: 0 | S32: 0 | U32: 0 | V32: 0
I33: 0 | J33: 0 | L33: 0 | N33: 0 | P33: 0 | Q33: 0 | S33: 0 | U33: 0 | V33: 0
I34: 0 | J34: 0 | L34: 0 | N34: 0 | P34: 0 | Q34: 0 | S34: 0 | U34: 0 | V34: 0
I35: 0 | J35: 0 | L35: 0 | N35: 0 | P35: 0 | Q35: 0 | S35: 0 | U35: 0 | V35: 0
I36: 0 | J36: 0 | L36: 0 | N36: 0 | P36: 0 | Q36: 0 | S36: 0 | U36: 0 | V36: 0
I37: 0 | J37: 0 | L37: 0 | N37: 0 | P37: 0 | Q37: 0 | S37: 0 | U37: 0 | V37: 0
I38: 0 | J38: 0 | L38: 0 | N38: 0 | P38: 0 | Q38: 0 | S38: 0 | U38: 0 | V38: 0
I39: 0 | J39: 0 | L39: 0 | N39: 0 | P39: 0 | Q39: 0 | S39: 0 | U39: 0 | V39: 0
I40: 0 | J40: 0 | L40: 0 | N40: 0 | P40: 0 | Q40: 0 | S40: 0 | U40: 0 | V40: 0
I41: 0 | J41: 0 | L41: 0 | N41: 0 | P41: 0 | Q41: 0 | S41: 0 | U41: 0 | V41: 0
I42: 0 | J42: 0 | L42: 0 | N42: 0 | P42: 0 | Q42: 0 | S42: 0 | U42: 0 | V42: 0
I43: 0 | J43: 0 | L43: 0 | N43: 0 | P43: 0 | Q43: 0 | S43: 0 | U43: 0 | V43: 0
I44: 0 | J44: 0 | L44: 0 | N44: 0 | P44: 0 | Q44: 0 | S44: 0 | U44: 0 | V44: 0
I45: 0 | J45: 0 | L45: =SUM(IF(K45=1,J45*$L$7,J45*0%)) -> 0 | N45: 0 | P45: 0 | Q45: 0 | S45: 0 | U45: 0 | V45: 0
I46: 0 | J46: 0 | L46: 0 | N46: 0 | P46: 0 | Q46: 0 | S46: 0 | U46: 0 | V46: 0
I47: 0 | J47: 0 | L47: 0 | N47: 0 | P47: 0 | Q47: 0 | S47: 0 | U47: 0 | V47: 0
I48: 0 | J48: 0 | L48: 0 | N48: 0 | P48: 0 | Q48: 0 | S48: 0 | U48: 0 | V48: 0
I49: 0 | J49: 0 | L49: 0 | N49: 0 | P49: 0 | Q49: 0 | S49: 0 | U49: 0 | V49: 0
I50: 0 | J50: 0 | L50: 0 | N50: 0 | P50: 0 | Q50: 0 | S50: 0 | U50: 0 | V50: 0
I51: 0 | J51: 0 | L51: 0 | N51: 0 | P51: 0 | Q51: 0 | S51: 0 | U51: 0 | V51: 0
I52: 0 | J52: 0 | L52: 0 | N52: 0 | P52: 0 | Q52: 0 | S52: 0 | U52: 0 | V52: 0
I53: 0 | J53: 0 | L53: 0 | N53: 0 | P53: 0 | Q53: 0 | S53: 0 | U53: 0 | V53: 0
I54: 0 | J54: 0 | L54: 0 | N54: 0 | P54: 0 | Q54: 0 | S54: 0 | U54: 0 | V54: 0
I55: 0 | J55: 0 | L55: 0 | N55: 0 | P55: 0 | Q55: 0 | S55: 0 | U55: 0 | V55: 0
I56: 0 | J56: 0 | L56: 0 | N56: 0 | P56: 0 | Q56: 0 | S56: 0 | U56: 0 | V56: 0
I57: 0 | J57: 0 | L57: 0 | N57: 0 | P57: 0 | Q57: 0 | S57: 0 | U57: 0 | V57: 0
I58: 0 | J58: 0 | L58: 0 | N58: 0 | P58: 0 | Q58: 0 | S58: 0 | U58: 0 | V58: 0
I59: 0 | J59: 0 | L59: 0 | N59: 0 | P59: 0 | Q59: 0 | S59: 0 | U59: 0 | V59: 0
I60: 0 | J60: 0 | L60: 0 | N60: 0 | P60: 0 | Q60: 0 | S60: 0 | U60: 0 | V60: 0
I61: 0 | J61: 0 | L61: 0 | N61: 0 | P61: 0 | Q61: 0 | S61: 0 | U61: 0 | V61: 0
I62: 0 | J62: 0 | L62: 0 | N62: 0 | P62: 0 | Q62: 0 | S62: 0 | U62: 0 | V62: 0
D64: =SUM(D9:D62) -> 0 | F64: =SUM(F9:F62) -> 0 | I64: =SUM(I9:I62) -> 0 | J64: =SUM(J9:J62) -> 0 | L64: =SUM(L9:L62) -> 0 | N64: =SUM(N9:N62) -> 0 | P64: =SUM(P9:P62) -> 0 | Q64: =SUM(Q9:Q62) -> 0 | S64: =SUM(S9:S62) -> 0 | U64: =SUM(U9:U62) -> 0 | V64: =SUM(V9:V62) -> 0

Sheet 2013
P1: Særlig ops. | R1: Beregn | S1: Pension | T1: Beregn | U1: Pension | V1: Pension
C2: 2013-01-01 | O2: 2 | P2: 0.01 | R2: Pension | S2: (A) | T2: Pension | U2: (B) | V2: I alt
M3: 2 | N3: 0.115 | Q3: Pensions
K4: Beregn | M4: Beregn | N4: Ferie- | P4: SH-, FF- | Q4: grundlag
D5: Krav om | E5: Krav | H5: Indkomst | J5: løn ialt | K5: ferie- | L5: Ferie- | M5: Ferie- | N5: godtgørelse | P5: godtgørelse
A6: Uge nr. | C6: 2013-01-01 | D6: udbetaling | E6: om | G6: Udbetalt | H6: hvoraf der | J6: hvoraf der | K6: tillæg | L6: tillæg | M6: godtg. | N6: i kr. | O6: 1 | P6: 0.069
D7: af | E7: sats | F7: Timer | G7: sats | H7: kun beregnes | J7: beregnes | K7: 1 | L7: 0.01 | M7: 1 | N7: 0.125 | Q7: 2013-01-01 | R7: 1 | S7: 0.0815 | T7: 1 | U7: 0.04 | V7: =SUM(S7+U7) -> 0.1215
A8: fra | B8: til | C8: Bemærkninger | D8: timer | E8: pr. time | F8: udbetalt | G8: pr. time | H8: pension | I8: Skyldig løn | J8: ferietillæg/godtg. | K8: tast | L8: i kr. | M8: tast | N8: i kr. | O8: tast | P8: i kr. | Q8: i kr. | R8: tast | S8: i kr. | T8: tast | U8: i kr.
I9: =IF((D9*E9>0),(D9*E9)-(F9*G9),IF((D9*E9<0),(D9*E9)-(F9*G9),0)) -> 0 | J9: =IF(AND(E9*D9=0,F9*G9>0),F9*G9,(D9*E9)) -> 0 | L9: =SUM(IF(K9=1,J9*$L$7,J9*0%)) -> 0 | N9: =SUM(IF(M9=1,J9*$N$7,IF(M9=2,J9*$N$3))) -> 0 | P9: =SUM(IF(O9=2,J9*$P$2,IF(O9=1,J9*$P$6))) -> 0 | Q9: =SUM(H9,J9,L9,N9,P9) -> 0 | S9: =IF($R9=1,$Q9*$S$7,$R9*0) -> 0 | U9: =IF($T9=1,$Q9*$U$7,$T9*0) -> 0 | V9: =SUM(S9,U9) -> 0
I10: 0 | J10: 0 | L10: 0 | N10: 0 | P10: =SUM(IF(O10=2,J10*$P$2,IF(O10=1,J10*$P$6))) -> 0 | Q10: =SUM(H10,J10,L10,N10,P10) -> 0 | S10: =IF($R10=1,$Q10*$S$7,$R10*0) -> 0 | U10: =IF($T10=1,$Q10*$U$7,$T10*0) -> 0 | V10: 0
I11: 0 | J11: 0 | L11: 0 | N11: 0 | P11: 0 | Q11: 0 | S11: 0 | U11: 0 | V11: 0
I12: 0 | J12: 0 | L12: 0 | N12: 0 | P12: 0 | Q12: 0 | S12: 0 | U12: 0 | V12: 0
I13: 0 | J13: 0 | L13: =SUM(IF(K13=1,J13*$L$7,J13*0%)) -> 0 | N13: 0 | P13: 0 | Q13: 0 | S13: 0 | U13: 0 | V13: 0
I14: 0 | J14: 0 | L14: 0 | N14: 0 | P14: 0 | Q14: 0 | S14: 0 | U14: 0 | V14: 0
I15: 0 | J15: 0 | L15: 0 | N15: 0 | P15: 0 | Q15: 0 | S15: 0 | U15: 0 | V15: 0
I16: 0 | J16: 0 | L16: 0 | N16: 0 | P16: 0 | Q16: 0 | S16: 0 | U16: 0 | V16: 0
I17: 0 | J17: 0 | L17: 0 | N17: 0 | P17: 0 | Q17: 0 | S17: 0 | U17: 0 | V17: 0
I18: 0 | J18: 0 | L18: 0 | N18: 0 | P18: 0 | Q18: 0 | S18: 0 | U18: 0 | V18: 0
I19: 0 | J19: 0 | L19: 0 | N19: 0 | P19: 0 | Q19: 0 | S19: 0 | U19: 0 | V19: 0
I20: 0 | J20: 0 | L20: 0 | N20: 0 | P20: 0 | Q20: 0 | S20: 0 | U20: 0 | V20: 0
I21: 0 | J21: 0 | L21: 0 | N21: 0 | P21: 0 | Q21: 0 | S21: 0 | U21: 0 | V21: 0
I22: 0 | J22: 0 | L22: 0 | N22: 0 | P22: 0 | Q22: 0 | S22: 0 | U22: 0 | V22: 0
I23: 0 | J23: 0 | L23: 0 | N23: 0 | P23: 0 | Q23: 0 | S23: 0 | U23: 0 | V23: 0
I24: 0 | J24: 0 | L24: 0 | N24: 0 | P24: 0 | Q24: 0 | S24: 0 | U24: 0 | V24: 0
I25: 0 | J25: 0 | L25: 0 | N25: 0 | P25: 0 | Q25: 0 | S25: 0 | U25: 0 | V25: 0
I26: 0 | J26: 0 | L26: 0 | N26: 0 | P26: 0 | Q26: 0 | S26: 0 | U26: 0 | V26: 0
I27: 0 | J27: 0 | L27: 0 | N27: 0 | P27: 0 | Q27: 0 | S27: 0 | U27: 0 | V27: 0
I28: 0 | J28: 0 | L28: 0 | N28: 0 | P28: 0 | Q28: 0 | S28: 0 | U28: 0 | V28: 0
I29: 0 | J29: 0 | L29: 0 | N29: 0 | P29: 0 | Q29: 0 | S29: 0 | U29: 0 | V29: 0
I30: 0 | J30: 0 | L30: 0 | N30: 0 | P30: 0 | Q30: 0 | S30: 0 | U30: 0 | V30: 0
I31: 0 | J31: 0 | L31: 0 | N31: 0 | P31: 0 | Q31: 0 | S31: 0 | U31: 0 | V31: 0
I32: 0 | J32: 0 | L32: 0 | N32: 0 | P32: 0 | Q32: 0 | S32: 0 | U32: 0 | V32: 0
I33: 0 | J33: 0 | L33: 0 | N33: 0 | P33: 0 | Q33: 0 | S33: 0 | U33: 0 | V33: 0
I34: 0 | J34: 0 | L34: 0 | N34: 0 | P34: 0 | Q34: 0 | S34: 0 | U34: 0 | V34: 0
I35: 0 | J35: 0 | L35: 0 | N35: 0 | P35: 0 | Q35: 0 | S35: 0 | U35: 0 | V35: 0
I36: 0 | J36: 0 | L36: 0 | N36: 0 | P36: 0 | Q36: 0 | S36: 0 | U36: 0 | V36: 0
I37: 0 | J37: 0 | L37: 0 | N37: 0 | P37: 0 | Q37: 0 | S37: 0 | U37: 0 | V37: 0
I38: 0 | J38: 0 | L38: 0 | N38: 0 | P38: 0 | Q38: 0 | S38: 0 | U38: 0 | V38: 0
I39: 0 | J39: 0 | L39: 0 | N39: 0 | P39: 0 | Q39: 0 | S39: 0 | U39: 0 | V39: 0
I40: 0 | J40: 0 | L40: 0 | N40: 0 | P40: 0 | Q40: 0 | S40: 0 | U40: 0 | V40: 0
I41: 0 | J41: 0 | L41: 0 | N41: 0 | P41: 0 | Q41: 0 | S41: 0 | U41: 0 | V41: 0
I42: 0 | J42: 0 | L42: 0 | N42: 0 | P42: 0 | Q42: 0 | S42: 0 | U42: 0 | V42: 0
I43: 0 | J43: 0 | L43: 0 | N43: 0 | P43: 0 | Q43: 0 | S43: 0 | U43: 0 | V43: 0
I44: 0 | J44: 0 | L44: 0 | N44: 0 | P44: 0 | Q44: 0 | S44: 0 | U44: 0 | V44: 0
I45: 0 | J45: 0 | L45: =SUM(IF(K45=1,J45*$L$7,J45*0%)) -> 0 | N45: 0 | P45: 0 | Q45: 0 | S45: 0 | U45: 0 | V45: 0
I46: 0 | J46: 0 | L46: 0 | N46: 0 | P46: 0 | Q46: 0 | S46: 0 | U46: 0 | V46: 0
I47: 0 | J47: 0 | L47: 0 | N47: 0 | P47: 0 | Q47: 0 | S47: 0 | U47: 0 | V47: 0
I48: 0 | J48: 0 | L48: 0 | N48: 0 | P48: 0 | Q48: 0 | S48: 0 | U48: 0 | V48: 0
I49: 0 | J49: 0 | L49: 0 | N49: 0 | P49: 0 | Q49: 0 | S49: 0 | U49: 0 | V49: 0
I50: 0 | J50: 0 | L50: 0 | N50: 0 | P50: 0 | Q50: 0 | S50: 0 | U50: 0 | V50: 0
I51: 0 | J51: 0 | L51: 0 | N51: 0 | P51: 0 | Q51: 0 | S51: 0 | U51: 0 | V51: 0
I52: 0 | J52: 0 | L52: 0 | N52: 0 | P52: 0 | Q52: 0 | S52: 0 | U52: 0 | V52: 0
I53: 0 | J53: 0 | L53: 0 | N53: 0 | P53: 0 | Q53: 0 | S53: 0 | U53: 0 | V53: 0
I54: 0 | J54: 0 | L54: 0 | N54: 0 | P54: 0 | Q54: 0 | S54: 0 | U54: 0 | V54: 0
I55: 0 | J55: 0 | L55: 0 | N55: 0 | P55: 0 | Q55: 0 | S55: 0 | U55: 0 | V55: 0
I56: 0 | J56: 0 | L56: 0 | N56: 0 | P56: 0 | Q56: 0 | S56: 0 | U56: 0 | V56: 0
I57: 0 | J57: 0 | L57: 0 | N57: 0 | P57: 0 | Q57: 0 | S57: 0 | U57: 0 | V57: 0
I58: 0 | J58: 0 | L58: 0 | N58: 0 | P58: 0 | Q58: 0 | S58: 0 | U58: 0 | V58: 0
I59: 0 | J59: 0 | L59: 0 | N59: 0 | P59: 0 | Q59: 0 | S59: 0 | U59: 0 | V59: 0
I60: 0 | J60: 0 | L60: 0 | N60: 0 | P60: 0 | Q60: 0 | S60: 0 | U60: 0 | V60: 0
I61: 0 | J61: 0 | L61: 0 | N61: 0 | P61: 0 | Q61: 0 | S61: 0 | U61: 0 | V61: 0
I62: 0 | J62: 0 | L62: 0 | N62: 0 | P62: 0 | Q62: 0 | S62: 0 | U62: 0 | V62: 0
D64: =SUM(D9:D62) -> 0 | F64: =SUM(F9:F62) -> 0 | I64: =SUM(I9:I62) -> 0 | J64: =SUM(J9:J62) -> 0 | L64: =SUM(L9:L62) -> 0 | N64: =SUM(N9:N62) -> 0 | P64: =SUM(P9:P62) -> 0 | Q64: =SUM(Q9:Q62) -> 0 | S64: =SUM(S9:S62) -> 0 | U64: =SUM(U9:U62) -> 0 | V64: =SUM(V9:V62) -> 0

Sheet 2014
P1: Særlig ops. | R1: Beregn | S1: Pension | T1: Beregn | U1: Pension | V1: Pension
C2: 2014-03-01 | O2: 4 | P2: 0.013 | R2: Pension | S2: (A) | T2: Pension | U2: (B) | V2: I alt
C3: 2014-01-01 | M3: 2 | N3: 0.115 | O3: 3 | P3: 0.01 | Q3: Pensions
K4: Beregn | M4: Beregn | N4: Ferie- | P4: SH-, FF- | Q4: grundlag
D5: Krav om | E5: Krav | H5: Indkomst | J5: løn ialt | K5: ferie- | L5: Ferie- | M5: Ferie- | N5: godtgørelse | P5: godtgørelse
A6: Uge nr. | C6: 2014-03-01 | D6: udbetaling | E6: om | G6: Udbetalt | H6: hvoraf der | J6: hvoraf der | K6: tillæg | L6: tillæg | M6: godtg. | N6: i kr. | O6: 2 | P6: 0.072
C7: 2014-01-01 | D7: af | E7: sats | F7: Timer | G7: sats | H7: kun beregnes | J7: beregnes | K7: 1 | L7: 0.01 | M7: 1 | N7: 0.125 | O7: 1 | P7: 0.069 | Q7: 2014-01-01 | R7: 1 | S7: 0.0815 | T7: 1 | U7: 0.04 | V7: =SUM(S7+U7) -> 0.1215
A8: fra | B8: til | C8: Bemærkninger | D8: timer | E8: pr. time | F8: udbetalt | G8: pr. time | H8: pension | I8: Skyldig løn | J8: ferietillæg/godtg. | K8: tast | L8: i kr. | M8: tast | N8: i kr. | O8: tast | P8: i kr. | Q8: i kr. | R8: tast | S8: i kr. | T8: tast | U8: i kr.
I9: =IF((D9*E9>0),(D9*E9)-(F9*G9),IF((D9*E9<0),(D9*E9)-(F9*G9),0)) -> 0 | J9: =IF(AND(E9*D9=0,F9*G9>0),F9*G9,(D9*E9)) -> 0 | L9: =SUM(IF(K9=1,J9*$L$7,J9*0%)) -> 0 | N9: =SUM(IF(M9=1,J9*$N$7,IF(M9=2,J9*$N$3))) -> 0 | P9: =SUM(IF(O9=4,J9*$P$2,IF(O9=3,J9*$P$3,IF(O9=2,J9*$P$6,IF(O9=1,J9*$P$7))))) -> 0 | Q9: =SUM(H9,J9,L9,N9,P9) -> 0 | S9: =IF($R9=1,$Q9*$S$7,$R9*0) -> 0 | U9: =IF($T9=1,$Q9*$U$7,$T9*0) -> 0 | V9: =SUM(S9,U9) -> 0
I10: 0 | J10: 0 | L10: =SUM(IF(K10=1,J10*$L$7,J10*0%)) -> 0 | N10: =SUM(IF(M10=1,J10*$N$7,IF(M10=2,J10*$N$3))) -> 0 | P10: =SUM(IF(O10=4,J10*$P$2,IF(O10=3,J10*$P$3,IF(O10=2,J10*$P$6,IF(O10=1,J10*$P$7))))) -> 0 | Q10: =SUM(H10,J10,L10,N10,P10) -> 0 | S10: =IF($R10=1,$Q10*$S$7,$R10*0) -> 0 | U10: =IF($T10=1,$Q10*$U$7,$T10*0) -> 0 | V10: 0
I11: 0 | J11: 0 | L11: 0 | N11: 0 | P11: 0 | Q11: 0 | S11: 0 | U11: 0 | V11: 0
I12: 0 | J12: 0 | L12: 0 | N12: 0 | P12: 0 | Q12: 0 | S12: 0 | U12: 0 | V12: 0
I13: 0 | J13: 0 | L13: 0 | N13: 0 | P13: 0 | Q13: 0 | S13: 0 | U13: 0 | V13: 0
I14: 0 | J14: 0 | L14: 0 | N14: 0 | P14: 0 | Q14: 0 | S14: 0 | U14: 0 | V14: 0
I15: 0 | J15: 0 | L15: 0 | N15: 0 | P15: 0 | Q15: 0 | S15: 0 | U15: 0 | V15: 0
I16: 0 | J16: 0 | L16: 0 | N16: 0 | P16: 0 | Q16: 0 | S16: 0 | U16: 0 | V16: 0
I17: 0 | J17: 0 | L17: 0 | N17: 0 | P17: 0 | Q17: 0 | S17: 0 | U17: 0 | V17: 0
I18: 0 | J18: 0 | L18: 0 | N18: 0 | P18: 0 | Q18: 0 | S18: 0 | U18: 0 | V18: 0
I19: 0 | J19: 0 | L19: 0 | N19: 0 | P19: 0 | Q19: 0 | S19: 0 | U19: 0 | V19: 0
I20: 0 | J20: 0 | L20: 0 | N20: 0 | P20: 0 | Q20: 0 | S20: 0 | U20: 0 | V20: 0
I21: 0 | J21: 0 | L21: 0 | N21: 0 | P21: 0 | Q21: 0 | S21: 0 | U21: 0 | V21: 0
I22: 0 | J22: 0 | L22: 0 | N22: 0 | P22: 0 | Q22: 0 | S22: 0 | U22: 0 | V22: 0
I23: 0 | J23: 0 | L23: 0 | N23: 0 | P23: 0 | Q23: 0 | S23: 0 | U23: 0 | V23: 0
I24: 0 | J24: 0 | L24: 0 | N24: 0 | P24: 0 | Q24: 0 | S24: 0 | U24: 0 | V24: 0
I25: 0 | J25: 0 | L25: 0 | N25: 0 | P25: 0 | Q25: 0 | S25: 0 | U25: 0 | V25: 0
I26: 0 | J26: 0 | L26: 0 | N26: 0 | P26: 0 | Q26: 0 | S26: 0 | U26: 0 | V26: 0
I27: 0 | J27: 0 | L27: 0 | N27: 0 | P27: 0 | Q27: 0 | S27: 0 | U27: 0 | V27: 0
I28: 0 | J28: 0 | L28: 0 | N28: 0 | P28: 0 | Q28: 0 | S28: 0 | U28: 0 | V28: 0
I29: 0 | J29: 0 | L29: 0 | N29: 0 | P29: 0 | Q29: 0 | S29: 0 | U29: 0 | V29: 0
I30: 0 | J30: 0 | L30: 0 | N30: 0 | P30: 0 | Q30: 0 | S30: 0 | U30: 0 | V30: 0
I31: 0 | J31: 0 | L31: 0 | N31: 0 | P31: 0 | Q31: 0 | S31: 0 | U31: 0 | V31: 0
I32: 0 | J32: 0 | L32: 0 | N32: 0 | P32: 0 | Q32: 0 | S32: 0 | U32: 0 | V32: 0
I33: 0 | J33: 0 | L33: 0 | N33: 0 | P33: 0 | Q33: 0 | S33: 0 | U33: 0 | V33: 0
I34: 0 | J34: 0 | L34: 0 | N34: 0 | P34: 0 | Q34: 0 | S34: 0 | U34: 0 | V34: 0
I35: 0 | J35: 0 | L35: 0 | N35: 0 | P35: 0 | Q35: 0 | S35: 0 | U35: 0 | V35: 0
I36: 0 | J36: 0 | L36: 0 | N36: 0 | P36: 0 | Q36: 0 | S36: 0 | U36: 0 | V36: 0
I37: 0 | J37: 0 | L37: 0 | N37: 0 | P37: 0 | Q37: 0 | S37: 0 | U37: 0 | V37: 0
I38: 0 | J38: 0 | L38: 0 | N38: 0 | P38: 0 | Q38: 0 | S38: 0 | U38: 0 | V38: 0
I39: 0 | J39: 0 | L39: 0 | N39: 0 | P39: 0 | Q39: 0 | S39: 0 | U39: 0 | V39: 0
I40: 0 | J40: 0 | L40: 0 | N40: 0 | P40: 0 | Q40: 0 | S40: 0 | U40: 0 | V40: 0
I41: 0 | J41: 0 | L41: 0 | N41: 0 | P41: 0 | Q41: 0 | S41: 0 | U41: 0 | V41: 0
I42: 0 | J42: 0 | L42: 0 | N42: 0 | P42: 0 | Q42: 0 | S42: 0 | U42: 0 | V42: 0
I43: 0 | J43: 0 | L43: 0 | N43: 0 | P43: 0 | Q43: 0 | S43: 0 | U43: 0 | V43: 0
I44: 0 | J44: 0 | L44: 0 | N44: 0 | P44: 0 | Q44: 0 | S44: 0 | U44: 0 | V44: 0
I45: 0 | J45: 0 | L45: 0 | N45: 0 | P45: 0 | Q45: 0 | S45: 0 | U45: 0 | V45: 0
I46: 0 | J46: 0 | L46: 0 | N46: 0 | P46: 0 | Q46: 0 | S46: 0 | U46: 0 | V46: 0
I47: 0 | J47: 0 | L47: 0 | N47: 0 | P47: 0 | Q47: 0 | S47: 0 | U47: 0 | V47: 0
I48: 0 | J48: 0 | L48: 0 | N48: 0 | P48: 0 | Q48: 0 | S48: 0 | U48: 0 | V48: 0
I49: 0 | J49: 0 | L49: 0 | N49: 0 | P49: 0 | Q49: 0 | S49: 0 | U49: 0 | V49: 0
I50: 0 | J50: 0 | L50: 0 | N50: 0 | P50: 0 | Q50: 0 | S50: 0 | U50: 0 | V50: 0
I51: 0 | J51: 0 | L51: 0 | N51: 0 | P51: 0 | Q51: 0 | S51: 0 | U51: 0 | V51: 0
I52: 0 | J52: 0 | L52: 0 | N52: 0 | P52: 0 | Q52: 0 | S52: 0 | U52: 0 | V52: 0
I53: 0 | J53: 0 | L53: 0 | N53: 0 | P53: 0 | Q53: 0 | S53: 0 | U53: 0 | V53: 0
I54: 0 | J54: 0 | L54: 0 | N54: 0 | P54: 0 | Q54: 0 | S54: 0 | U54: 0 | V54: 0
I55: 0 | J55: 0 | L55: 0 | N55: 0 | P55: 0 | Q55: 0 | S55: 0 | U55: 0 | V55: 0
I56: 0 | J56: 0 | L56: 0 | N56: 0 | P56: 0 | Q56: 0 | S56: 0 | U56: 0 | V56: 0
I57: 0 | J57: 0 | L57: 0 | N57: 0 | P57: 0 | Q57: 0 | S57: 0 | U57: 0 | V57: 0
I58: 0 | J58: 0 | L58: 0 | N58: 0 | P58: 0 | Q58: 0 | S58: 0 | U58: 0 | V58: 0
I59: 0 | J59: 0 | L59: 0 | N59: 0 | P59: 0 | Q59: 0 | S59: 0 | U59: 0 | V59: 0
I60: 0 | J60: 0 | L60: 0 | N60: 0 | P60: 0 | Q60: 0 | S60: 0 | U60: 0 | V60: 0
I61: 0 | J61: 0 | L61: 0 | N61: 0 | P61: 0 | Q61: 0 | S61: 0 | U61: 0 | V61: 0
I62: 0 | J62: 0 | L62: 0 | N62: 0 | P62: 0 | Q62: 0 | S62: 0 | U62: 0 | V62: 0
D64: =SUM(D9:D62) -> 0 | F64: =SUM(F9:F62) -> 0 | I64: =SUM(I9:I62) -> 0 | J64: =SUM(J9:J62) -> 0 | L64: =SUM(L9:L62) -> 0 | N64: =SUM(N9:N62) -> 0 | P64: =SUM(P9:P62) -> 0 | Q64: =SUM(Q9:Q62) -> 0 | S64: =SUM(S9:S62) -> 0 | U64: =SUM(U9:U62) -> 0 | V64: =SUM(V9:V62) -> 0

Sheet 2015
P1: Særlig ops. | R1: Beregn | S1: Pension | T1: Beregn | U1: Pension | V1: Pension
C2: 2015-03-01 | O2: 4 | P2: 0.017 | R2: Pension | S2: (A) | T2: Pension | U2: (B) | V2: I alt
C3: 2015-01-01 | M3: 2 | N3: 0.115 | O3: 3 | P3: 0.013 | Q3: Pensions
K4: Beregn | M4: Beregn | N4: Ferie- | P4: SH-, FF- | Q4: grundlag
D5: Krav om | E5: Krav | H5: Indkomst | J5: løn ialt | K5: ferie- | L5: Ferie- | M5: Ferie- | N5: godtgørelse | P5: godtgørelse
A6: Uge nr. | C6: 2015-03-01 | D6: udbetaling | E6: om | G6: Udbetalt | H6: hvoraf der | J6: hvoraf der | K6: tillæg | L6: tillæg | M6: godtg. | N6: i kr. | O6: 2 | P6: 0.076
C7: 2015-01-01 | D7: af | E7: sats | F7: Timer | G7: sats | H7: kun beregnes | J7: beregnes | K7: 1 | L7: 0.01 | M7: 1 | N7: 0.125 | O7: 1 | P7: 0.072 | Q7: 2015-01-01 | R7: 1 | S7: 0.0815 | T7: 1 | U7: 0.04 | V7: =SUM(S7+U7) -> 0.1215
A8: fra | B8: til | C8: Bemærkninger | D8: timer | E8: pr. time | F8: udbetalt | G8: pr. time | H8: pension | I8: Skyldig løn | J8: ferietillæg/godtg. | K8: tast | L8: i kr. | M8: tast | N8: i kr. | O8: tast | P8: i kr. | Q8: i kr. | R8: tast | S8: i kr. | T8: tast | U8: i kr.
I9: =IF((D9*E9>0),(D9*E9)-(F9*G9),IF((D9*E9<0),(D9*E9)-(F9*G9),0)) -> 0 | J9: =IF(AND(E9*D9=0,F9*G9>0),F9*G9,(D9*E9)) -> 0 | L9: =SUM(IF(K9=1,J9*$L$7,J9*0%)) -> 0 | N9: =SUM(IF(M9=1,J9*$N$7,IF(M9=2,J9*$N$3))) -> 0 | P9: =SUM(IF(O9=4,J9*$P$2,IF(O9=3,J9*$P$3,IF(O9=2,J9*$P$6,IF(O9=1,J9*$P$7))))) -> 0 | Q9: =SUM(H9,J9,L9,N9,P9) -> 0 | S9: =IF($R9=1,$Q9*$S$7,$R9*0) -> 0 | U9: =IF($T9=1,$Q9*$U$7,$T9*0) -> 0 | V9: =SUM(S9,U9) -> 0
I10: 0 | J10: 0 | L10: =SUM(IF(K10=1,J10*$L$7,J10*0%)) -> 0 | N10: =SUM(IF(M10=1,J10*$N$7,IF(M10=2,J10*$N$3))) -> 0 | P10: =SUM(IF(O10=4,J10*$P$2,IF(O10=3,J10*$P$3,IF(O10=2,J10*$P$6,IF(O10=1,J10*$P$7))))) -> 0 | Q10: =SUM(H10,J10,L10,N10,P10) -> 0 | S10: =IF($R10=1,$Q10*$S$7,$R10*0) -> 0 | U10: =IF($T10=1,$Q10*$U$7,$T10*0) -> 0 | V10: 0
I11: 0 | J11: 0 | L11: 0 | N11: 0 | P11: 0 | Q11: 0 | S11: 0 | U11: 0 | V11: 0
I12: 0 | J12: 0 | L12: 0 | N12: 0 | P12: 0 | Q12: 0 | S12: 0 | U12: 0 | V12: 0
I13: 0 | J13: 0 | L13: 0 | N13: 0 | P13: 0 | Q13: 0 | S13: 0 | U13: 0 | V13: 0
I14: 0 | J14: 0 | L14: 0 | N14: 0 | P14: 0 | Q14: 0 | S14: 0 | U14: 0 | V14: 0
I15: 0 | J15: 0 | L15: 0 | N15: 0 | P15: 0 | Q15: 0 | S15: 0 | U15: 0 | V15: 0
I16: 0 | J16: 0 | L16: 0 | N16: 0 | P16: 0 | Q16: 0 | S16: 0 | U16: 0 | V16: 0
I17: 0 | J17: 0 | L17: 0 | N17: 0 | P17: 0 | Q17: 0 | S17: 0 | U17: 0 | V17: 0
I18: 0 | J18: 0 | L18: 0 | N18: 0 | P18: 0 | Q18: 0 | S18: 0 | U18: 0 | V18: 0
I19: 0 | J19: 0 | L19: 0 | N19: 0 | P19: 0 | Q19: 0 | S19: 0 | U19: 0 | V19: 0
I20: 0 | J20: 0 | L20: 0 | N20: 0 | P20: 0 | Q20: 0 | S20: 0 | U20: 0 | V20: 0
I21: 0 | J21: 0 | L21: 0 | N21: 0 | P21: 0 | Q21: 0 | S21: 0 | U21: 0 | V21: 0
I22: 0 | J22: 0 | L22: 0 | N22: 0 | P22: 0 | Q22: 0 | S22: 0 | U22: 0 | V22: 0
I23: 0 | J23: 0 | L23: 0 | N23: 0 | P23: 0 | Q23: 0 | S23: 0 | U23: 0 | V23: 0
I24: 0 | J24: 0 | L24: 0 | N24: 0 | P24: 0 | Q24: 0 | S24: 0 | U24: 0 | V24: 0
I25: 0 | J25: 0 | L25: 0 | N25: 0 | P25: 0 | Q25: 0 | S25: 0 | U25: 0 | V25: 0
I26: 0 | J26: 0 | L26: 0 | N26: 0 | P26: 0 | Q26: 0 | S26: 0 | U26: 0 | V26: 0
I27: 0 | J27: 0 | L27: 0 | N27: 0 | P27: 0 | Q27: 0 | S27: 0 | U27: 0 | V27: 0
I28: 0 | J28: 0 | L28: 0 | N28: 0 | P28: 0 | Q28: 0 | S28: 0 | U28: 0 | V28: 0
I29: 0 | J29: 0 | L29: 0 | N29: 0 | P29: 0 | Q29: 0 | S29: 0 | U29: 0 | V29: 0
I30: 0 | J30: 0 | L30: 0 | N30: 0 | P30: 0 | Q30: 0 | S30: 0 | U30: 0 | V30: 0
I31: 0 | J31: 0 | L31: 0 | N31: 0 | P31: 0 | Q31: 0 | S31: 0 | U31: 0 | V31: 0
I32: 0 | J32: 0 | L32: 0 | N32: 0 | P32: 0 | Q32: 0 | S32: 0 | U32: 0 | V32: 0
I33: 0 | J33: 0 | L33: 0 | N33: 0 | P33: 0 | Q33: 0 | S33: 0 | U33: 0 | V33: 0
I34: 0 | J34: 0 | L34: 0 | N34: 0 | P34: 0 | Q34: 0 | S34: 0 | U34: 0 | V34: 0
I35: 0 | J35: 0 | L35: 0 | N35: 0 | P35: 0 | Q35: 0 | S35: 0 | U35: 0 | V35: 0
I36: 0 | J36: 0 | L36: 0 | N36: 0 | P36: 0 | Q36: 0 | S36: 0 | U36: 0 | V36: 0
I37: 0 | J37: 0 | L37: 0 | N37: 0 | P37: 0 | Q37: 0 | S37: 0 | U37: 0 | V37: 0
I38: 0 | J38: 0 | L38: 0 | N38: 0 | P38: 0 | Q38: 0 | S38: 0 | U38: 0 | V38: 0
I39: 0 | J39: 0 | L39: 0 | N39: 0 | P39: 0 | Q39: 0 | S39: 0 | U39: 0 | V39: 0
I40: 0 | J40: 0 | L40: 0 | N40: 0 | P40: 0 | Q40: 0 | S40: 0 | U40: 0 | V40: 0
I41: 0 | J41: 0 | L41: 0 | N41: 0 | P41: 0 | Q41: 0 | S41: 0 | U41: 0 | V41: 0
I42: 0 | J42: 0 | L42: 0 | N42: 0 | P42: 0 | Q42: 0 | S42: 0 | U42: 0 | V42: 0
I43: 0 | J43: 0 | L43: 0 | N43: 0 | P43: 0 | Q43: 0 | S43: 0 | U43: 0 | V43: 0
I44: 0 | J44: 0 | L44: 0 | N44: 0 | P44: 0 | Q44: 0 | S44: 0 | U44: 0 | V44: 0
I45: 0 | J45: 0 | L45: 0 | N45: 0 | P45: 0 | Q45: 0 | S45: 0 | U45: 0 | V45: 0
I46: 0 | J46: 0 | L46: 0 | N46: 0 | P46: 0 | Q46: 0 | S46: 0 | U46: 0 | V46: 0
I47: 0 | J47: 0 | L47: 0 | N47: 0 | P47: 0 | Q47: 0 | S47: 0 | U47: 0 | V47: 0
I48: 0 | J48: 0 | L48: 0 | N48: 0 | P48: 0 | Q48: 0 | S48: 0 | U48: 0 | V48: 0
I49: 0 | J49: 0 | L49: 0 | N49: 0 | P49: 0 | Q49: 0 | S49: 0 | U49: 0 | V49: 0
I50: 0 | J50: 0 | L50: 0 | N50: 0 | P50: 0 | Q50: 0 | S50: 0 | U50: 0 | V50: 0
I51: 0 | J51: 0 | L51: 0 | N51: 0 | P51: 0 | Q51: 0 | S51: 0 | U51: 0 | V51: 0
I52: 0 | J52: 0 | L52: 0 | N52: 0 | P52: 0 | Q52: 0 | S52: 0 | U52: 0 | V52: 0
I53: 0 | J53: 0 | L53: 0 | N53: 0 | P53: 0 | Q53: 0 | S53: 0 | U53: 0 | V53: 0
I54: 0 | J54: 0 | L54: 0 | N54: 0 | P54: 0 | Q54: 0 | S54: 0 | U54: 0 | V54: 0
I55: 0 | J55: 0 | L55: 0 | N55: 0 | P55: 0 | Q55: 0 | S55: 0 | U55: 0 | V55: 0
I56: 0 | J56: 0 | L56: 0 | N56: 0 | P56: 0 | Q56: 0 | S56: 0 | U56: 0 | V56: 0
I57: 0 | J57: 0 | L57: 0 | N57: 0 | P57: 0 | Q57: 0 | S57: 0 | U57: 0 | V57: 0
I58: 0 | J58: 0 | L58: 0 | N58: 0 | P58: 0 | Q58: 0 | S58: 0 | U58: 0 | V58: 0
I59: 0 | J59: 0 | L59: 0 | N59: 0 | P59: 0 | Q59: 0 | S59: 0 | U59: 0 | V59: 0
I60: 0 | J60: 0 | L60: 0 | N60: 0 | P60: 0 | Q60: 0 | S60: 0 | U60: 0 | V60: 0
I61: 0 | J61: 0 | L61: 0 | N61: 0 | P61: 0 | Q61: 0 | S61: 0 | U61: 0 | V61: 0
I62: 0 | J62: 0 | L62: 0 | N62: 0 | P62: 0 | Q62: 0 | S62: 0 | U62: 0 | V62: 0
D64: =SUM(D9:D62) -> 0 | F64: =SUM(F9:F62) -> 0 | I64: =SUM(I9:I62) -> 0 | J64: =SUM(J9:J62) -> 0 | L64: =SUM(L9:L62) -> 0 | N64: =SUM(N9:N62) -> 0 | P64: =SUM(P9:P62) -> 0 | Q64: =SUM(Q9:Q62) -> 0 | S64: =SUM(S9:S62) -> 0 | U64: =SUM(U9:U62) -> 0 | V64: =SUM(V9:V62) -> 0

Sheet 2016
P1: Særlig ops. | R1: Beregn | S1: Pension | T1: Beregn | U1: Pension | V1: Pension
C2: 2016-03-01 | O2: 4 | P2: 0.02 | R2: Pension | S2: (A) | T2: Pension | U2: (B) | V2: I alt
C3: 2016-01-01 | M3: 2 | N3: 0.115 | O3: 3 | P3: 0.017 | Q3: Pensions
K4: Beregn | M4: Beregn | N4: Ferie- | P4: SH-, FF- | Q4: grundlag
D5: Krav om | E5: Krav | H5: Indkomst | J5: løn ialt | K5: ferie- | L5: Ferie- | M5: Ferie- | N5: godtgørelse | P5: godtgørelse
A6: Uge nr. | C6: 2016-03-01 | D6: udbetaling | E6: om | G6: Udbetalt | H6: hvoraf der | J6: hvoraf der | K6: tillæg | L6: tillæg | M6: godtg. | N6: i kr. | O6: 2 | P6: 0.079
C7: 2016-01-01 | D7: af | E7: sats | F7: Timer | G7: sats | H7: kun beregnes | J7: beregnes | K7: 1 | L7: 0.01 | M7: 1 | N7: 0.125 | O7: 1 | P7: 0.076 | Q7: 2016-01-01 | R7: 1 | S7: 0.0815 | T7: 1 | U7: 0.04 | V7: =SUM(S7+U7) -> 0.1215
A8: fra | B8: til | C8: Bemærkninger | D8: timer | E8: pr. time | F8: udbetalt | G8: pr. time | H8: pension | I8: Skyldig løn | J8: ferietillæg/godtg. | K8: tast | L8: i kr. | M8: tast | N8: i kr. | O8: tast | P8: i kr. | Q8: i kr. | R8: tast | S8: i kr. | T8: tast | U8: i kr.
I9: =IF((D9*E9>0),(D9*E9)-(F9*G9),IF((D9*E9<0),(D9*E9)-(F9*G9),0)) -> 0 | J9: =IF(AND(E9*D9=0,F9*G9>0),F9*G9,(D9*E9)) -> 0 | L9: =SUM(IF(K9=1,J9*$L$7,J9*0%)) -> 0 | N9: =SUM(IF(M9=1,J9*$N$7,IF(M9=2,J9*$N$3))) -> 0 | P9: =SUM(IF(O9=4,J9*$P$2,IF(O9=3,J9*$P$3,IF(O9=2,J9*$P$6,IF(O9=1,J9*$P$7))))) -> 0 | Q9: =SUM(H9,J9,L9,N9,P9) -> 0 | S9: =IF($R9=1,$Q9*$S$7,$R9*0) -> 0 | U9: =IF($T9=1,$Q9*$U$7,$T9*0) -> 0 | V9: =SUM(S9,U9) -> 0
I10: 0 | J10: 0 | L10: =SUM(IF(K10=1,J10*$L$7,J10*0%)) -> 0 | N10: =SUM(IF(M10=1,J10*$N$7,IF(M10=2,J10*$N$3))) -> 0 | P10: =SUM(IF(O10=4,J10*$P$2,IF(O10=3,J10*$P$3,IF(O10=2,J10*$P$6,IF(O10=1,J10*$P$7))))) -> 0 | Q10: =SUM(H10,J10,L10,N10,P10) -> 0 | S10: =IF($R10=1,$Q10*$S$7,$R10*0) -> 0 | U10: =IF($T10=1,$Q10*$U$7,$T10*0) -> 0 | V10: 0
I11: 0 | J11: 0 | L11: 0 | N11: 0 | P11: 0 | Q11: 0 | S11: 0 | U11: 0 | V11: 0
I12: 0 | J12: 0 | L12: 0 | N12: 0 | P12: 0 | Q12: 0 | S12: 0 | U12: 0 | V12: 0
I13: 0 | J13: 0 | L13: 0 | N13: 0 | P13: 0 | Q13: 0 | S13: 0 | U13: 0 | V13: 0
I14: 0 | J14: 0 | L14: 0 | N14: 0 | P14: 0 | Q14: 0 | S14: 0 | U14: 0 | V14: 0
I15: 0 | J15: 0 | L15: 0 | N15: 0 | P15: 0 | Q15: 0 | S15: 0 | U15: 0 | V15: 0
I16: 0 | J16: 0 | L16: 0 | N16: 0 | P16: 0 | Q16: 0 | S16: 0 | U16: 0 | V16: 0
I17: 0 | J17: 0 | L17: 0 | N17: 0 | P17: 0 | Q17: 0 | S17: 0 | U17: 0 | V17: 0
I18: 0 | J18: 0 | L18: 0 | N18: 0 | P18: 0 | Q18: 0 | S18: 0 | U18: 0 | V18: 0
I19: 0 | J19: 0 | L19: 0 | N19: 0 | P19: 0 | Q19: 0 | S19: 0 | U19: 0 | V19: 0
I20: 0 | J20: 0 | L20: 0 | N20: 0 | P20: 0 | Q20: 0 | S20: 0 | U20: 0 | V20: 0
I21: 0 | J21: 0 | L21: 0 | N21: 0 | P21: 0 | Q21: 0 | S21: 0 | U21: 0 | V21: 0
I22: 0 | J22: 0 | L22: 0 | N22: 0 | P22: 0 | Q22: 0 | S22: 0 | U22: 0 | V22: 0
I23: 0 | J23: 0 | L23: 0 | N23: 0 | P23: 0 | Q23: 0 | S23: 0 | U23: 0 | V23: 0
I24: 0 | J24: 0 | L24: 0 | N24: 0 | P24: 0 | Q24: 0 | S24: 0 | U24: 0 | V24: 0
I25: 0 | J25: 0 | L25: 0 | N25: 0 | P25: 0 | Q25: 0 | S25: 0 | U25: 0 | V25: 0
I26: 0 | J26: 0 | L26: 0 | N26: 0 | P26: 0 | Q26: 0 | S26: 0 | U26: 0 | V26: 0
I27: 0 | J27: 0 | L27: 0 | N27: 0 | P27: 0 | Q27: 0 | S27: 0 | U27: 0 | V27: 0
I28: 0 | J28: 0 | L28: 0 | N28: 0 | P28: 0 | Q28: 0 | S28: 0 | U28: 0 | V28: 0
I29: 0 | J29: 0 | L29: 0 | N29: 0 | P29: 0 | Q29: 0 | S29: 0 | U29: 0 | V29: 0
I30: 0 | J30: 0 | L30: 0 | N30: 0 | P30: 0 | Q30: 0 | S30: 0 | U30: 0 | V30: 0
I31: 0 | J31: 0 | L31: 0 | N31: 0 | P31: 0 | Q31: 0 | S31: 0 | U31: 0 | V31: 0
I32: 0 | J32: 0 | L32: 0 | N32: 0 | P32: 0 | Q32: 0 | S32: 0 | U32: 0 | V32: 0
I33: 0 | J33: 0 | L33: 0 | N33: 0 | P33: 0 | Q33: 0 | S33: 0 | U33: 0 | V33: 0
I34: 0 | J34: 0 | L34: 0 | N34: 0 | P34: 0 | Q34: 0 | S34: 0 | U34: 0 | V34: 0
I35: 0 | J35: 0 | L35: 0 | N35: 0 | P35: 0 | Q35: 0 | S35: 0 | U35: 0 | V35: 0
I36: 0 | J36: 0 | L36: 0 | N36: 0 | P36: 0 | Q36: 0 | S36: 0 | U36: 0 | V36: 0
I37: 0 | J37: 0 | L37: 0 | N37: 0 | P37: 0 | Q37: 0 | S37: 0 | U37: 0 | V37: 0
I38: 0 | J38: 0 | L38: 0 | N38: 0 | P38: 0 | Q38: 0 | S38: 0 | U38: 0 | V38: 0
I39: 0 | J39: 0 | L39: 0 | N39: 0 | P39: 0 | Q39: 0 | S39: 0 | U39: 0 | V39: 0
I40: 0 | J40: 0 | L40: 0 | N40: 0 | P40: 0 | Q40: 0 | S40: 0 | U40: 0 | V40: 0
I41: 0 | J41: 0 | L41: 0 | N41: 0 | P41: 0 | Q41: 0 | S41: 0 | U41: 0 | V41: 0
I42: 0 | J42: 0 | L42: 0 | N42: 0 | P42: 0 | Q42: 0 | S42: 0 | U42: 0 | V42: 0
I43: 0 | J43: 0 | L43: 0 | N43: 0 | P43: 0 | Q43: 0 | S43: 0 | U43: 0 | V43: 0
I44: 0 | J44: 0 | L44: 0 | N44: 0 | P44: 0 | Q44: 0 | S44: 0 | U44: 0 | V44: 0
I45: 0 | J45: 0 | L45: 0 | N45: 0 | P45: 0 | Q45: 0 | S45: 0 | U45: 0 | V45: 0
I46: 0 | J46: 0 | L46: 0 | N46: 0 | P46: 0 | Q46: 0 | S46: 0 | U46: 0 | V46: 0
I47: 0 | J47: 0 | L47: 0 | N47: 0 | P47: 0 | Q47: 0 | S47: 0 | U47: 0 | V47: 0
I48: 0 | J48: 0 | L48: 0 | N48: 0 | P48: 0 | Q48: 0 | S48: 0 | U48: 0 | V48: 0
I49: 0 | J49: 0 | L49: 0 | N49: 0 | P49: 0 | Q49: 0 | S49: 0 | U49: 0 | V49: 0
I50: 0 | J50: 0 | L50: 0 | N50: 0 | P50: 0 | Q50: 0 | S50: 0 | U50: 0 | V50: 0
I51: 0 | J51: 0 | L51: 0 | N51: 0 | P51: 0 | Q51: 0 | S51: 0 | U51: 0 | V51: 0
I52: 0 | J52: 0 | L52: 0 | N52: 0 | P52: 0 | Q52: 0 | S52: 0 | U52: 0 | V52: 0
I53: 0 | J53: 0 | L53: 0 | N53: 0 | P53: 0 | Q53: 0 | S53: 0 | U53: 0 | V53: 0
I54: 0 | J54: 0 | L54: 0 | N54: 0 | P54: 0 | Q54: 0 | S54: 0 | U54: 0 | V54: 0
I55: 0 | J55: 0 | L55: 0 | N55: 0 | P55: 0 | Q55: 0 | S55: 0 | U55: 0 | V55: 0
I56: 0 | J56: 0 | L56: 0 | N56: 0 | P56: 0 | Q56: 0 | S56: 0 | U56: 0 | V56: 0
I57: 0 | J57: 0 | L57: 0 | N57: 0 | P57: 0 | Q57: 0 | S57: 0 | U57: 0 | V57: 0
I58: 0 | J58: 0 | L58: 0 | N58: 0 | P58: 0 | Q58: 0 | S58: 0 | U58: 0 | V58: 0
I59: 0 | J59: 0 | L59: 0 | N59: 0 | P59: 0 | Q59: 0 | S59: 0 | U59: 0 | V59: 0
I60: 0 | J60: 0 | L60: 0 | N60: 0 | P60: 0 | Q60: 0 | S60: 0 | U60: 0 | V60: 0
I61: 0 | J61: 0 | L61: 0 | N61: 0 | P61: 0 | Q61: 0 | S61: 0 | U61: 0 | V61: 0
I62: 0 | J62: 0 | L62: 0 | N62: 0 | P62: 0 | Q62: 0 | S62: 0 | U62: 0 | V62: 0
D64: =SUM(D9:D62) -> 0 | F64: =SUM(F9:F62) -> 0 | I64: =SUM(I9:I62) -> 0 | J64: =SUM(J9:J62) -> 0 | L64: =SUM(L9:L62) -> 0 | N64: =SUM(N9:N62) -> 0 | P64: =SUM(P9:P62) -> 0 | Q64: =SUM(Q9:Q62) -> 0 | S64: =SUM(S9:S62) -> 0 | U64: =SUM(U9:U62) -> 0 | V64: =SUM(V9:V62) -> 0

Sheet 2017
P1: Særlig ops. | R1: Beregn | S1: Pension | T1: Beregn | U1: Pension | V1: Pension
C2: 2017-03-01 | O2: 4 | P2: 0.027 | R2: Pension | S2: (A) | T2: Pension | U2: (B) | V2: I alt
C3: 2017-01-01 | M3: 2 | N3: 0.115 | O3: 3 | P3: 0.02 | Q3: Pensions
K4: Beregn | M4: Beregn | N4: Ferie- | P4: SH-, FF- | Q4: grundlag
D5: Krav om | E5: Krav | H5: Indkomst | J5: løn ialt | K5: ferie- | L5: Ferie- | M5: Ferie- | N5: godtgørelse | P5: godtgørelse
A6: Uge nr. | C6: 2017-03-01 | D6: udbetaling | E6: om | G6: Udbetalt | H6: hvoraf der | J6: hvoraf der | K6: tillæg | L6: tillæg | M6: godtg. | N6: i kr. | O6: 2 | P6: 0.086
C7: 2017-01-01 | D7: af | E7: sats | F7: Timer | G7: sats | H7: kun beregnes | J7: beregnes | K7: 1 | L7: 0.01 | M7: 1 | N7: 0.125 | O7: 1 | P7: 0.079 | Q7: 2017-01-01 | R7: 1 | S7: 0.0815 | T7: 1 | U7: 0.04 | V7: =SUM(S7+U7) -> 0.1215
A8: fra | B8: til | C8: Bemærkninger | D8: timer | E8: pr. time | F8: udbetalt | G8: pr. time | H8: pension | I8: Skyldig løn | J8: ferietillæg/godtg. | K8: tast | L8: i kr. | M8: tast | N8: i kr. | O8: tast | P8: i kr. | Q8: i kr. | R8: tast | S8: i kr. | T8: tast | U8: i kr.
I9: =IF((D9*E9>0),(D9*E9)-(F9*G9),IF((D9*E9<0),(D9*E9)-(F9*G9),0)) -> 0 | J9: =IF(AND(E9*D9=0,F9*G9>0),F9*G9,(D9*E9)) -> 0 | L9: =SUM(IF(K9=1,J9*$L$7,J9*0%)) -> 0 | N9: =SUM(IF(M9=1,J9*$N$7,IF(M9=2,J9*$N$3))) -> 0 | P9: =SUM(IF(O9=4,J9*$P$2,IF(O9=3,J9*$P$3,IF(O9=2,J9*$P$6,IF(O9=1,J9*$P$7))))) -> 0 | Q9: =SUM(H9,J9,L9,N9,P9) -> 0 | S9: =IF($R9=1,$Q9*$S$7,$R9*0) -> 0 | U9: =IF($T9=1,$Q9*$U$7,$T9*0) -> 0 | V9: =SUM(S9,U9) -> 0
I10: 0 | J10: 0 | L10: =SUM(IF(K10=1,J10*$L$7,J10*0%)) -> 0 | N10: =SUM(IF(M10=1,J10*$N$7,IF(M10=2,J10*$N$3))) -> 0 | P10: =SUM(IF(O10=4,J10*$P$2,IF(O10=3,J10*$P$3,IF(O10=2,J10*$P$6,IF(O10=1,J10*$P$7))))) -> 0 | Q10: =SUM(H10,J10,L10,N10,P10) -> 0 | S10: =IF($R10=1,$Q10*$S$7,$R10*0) -> 0 | U10: =IF($T10=1,$Q10*$U$7,$T10*0) -> 0 | V10: 0
I11: 0 | J11: 0 | L11: 0 | N11: 0 | P11: 0 | Q11: 0 | S11: 0 | U11: 0 | V11: 0
I12: 0 | J12: 0 | L12: 0 | N12: 0 | P12: 0 | Q12: 0 | S12: 0 | U12: 0 | V12: 0
I13: 0 | J13: 0 | L13: 0 | N13: 0 | P13: 0 | Q13: 0 | S13: 0 | U13: 0 | V13: 0
I14: 0 | J14: 0 | L14: 0 | N14: 0 | P14: 0 | Q14: 0 | S14: 0 | U14: 0 | V14: 0
I15: 0 | J15: 0 | L15: 0 | N15: 0 | P15: 0 | Q15: 0 | S15: 0 | U15: 0 | V15: 0
I16: 0 | J16: 0 | L16: 0 | N16: 0 | P16: 0 | Q16: 0 | S16: 0 | U16: 0 | V16: 0
I17: 0 | J17: 0 | L17: 0 | N17: 0 | P17: 0 | Q17: 0 | S17: 0 | U17: 0 | V17: 0
I18: 0 | J18: 0 | L18: 0 | N18: 0 | P18: 0 | Q18: 0 | S18: 0 | U18: 0 | V18: 0
I19: 0 | J19: 0 | L19: 0 | N19: 0 | P19: 0 | Q19: 0 | S19: 0 | U19: 0 | V19: 0
I20: 0 | J20: 0 | L20: 0 | N20: 0 | P20: 0 | Q20: 0 | S20: 0 | U20: 0 | V20: 0
I21: 0 | J21: 0 | L21: 0 | N21: 0 | P21: 0 | Q21: 0 | S21: 0 | U21: 0 | V21: 0
I22: 0 | J22: 0 | L22: 0 | N22: 0 | P22: 0 | Q22: 0 | S22: 0 | U22: 0 | V22: 0
I23: 0 | J23: 0 | L23: 0 | N23: 0 | P23: 0 | Q23: 0 | S23: 0 | U23: 0 | V23: 0
I24: 0 | J24: 0 | L24: 0 | N24: 0 | P24: 0 | Q24: 0 | S24: 0 | U24: 0 | V24: 0
I25: 0 | J25: 0 | L25: 0 | N25: 0 | P25: 0 | Q25: 0 | S25: 0 | U25: 0 | V25: 0
I26: 0 | J26: 0 | L26: 0 | N26: 0 | P26: 0 | Q26: 0 | S26: 0 | U26: 0 | V26: 0
I27: 0 | J27: 0 | L27: 0 | N27: 0 | P27: 0 | Q27: 0 | S27: 0 | U27: 0 | V27: 0
I28: 0 | J28: 0 | L28: 0 | N28: 0 | P28: 0 | Q28: 0 | S28: 0 | U28: 0 | V28: 0
I29: 0 | J29: 0 | L29: 0 | N29: 0 | P29: 0 | Q29: 0 | S29: 0 | U29: 0 | V29: 0
I30: 0 | J30: 0 | L30: 0 | N30: 0 | P30: 0 | Q30: 0 | S30: 0 | U30: 0 | V30: 0
I31: 0 | J31: 0 | L31: 0 | N31: 0 | P31: 0 | Q31: 0 | S31: 0 | U31: 0 | V31: 0
I32: 0 | J32: 0 | L32: 0 | N32: 0 | P32: 0 | Q32: 0 | S32: 0 | U32: 0 | V32: 0
I33: 0 | J33: 0 | L33: 0 | N33: 0 | P33: 0 | Q33: 0 | S33: 0 | U33: 0 | V33: 0
I34: 0 | J34: 0 | L34: 0 | N34: 0 | P34: 0 | Q34: 0 | S34: 0 | U34: 0 | V34: 0
I35: 0 | J35: 0 | L35: 0 | N35: 0 | P35: 0 | Q35: 0 | S35: 0 | U35: 0 | V35: 0
I36: 0 | J36: 0 | L36: 0 | N36: 0 | P36: 0 | Q36: 0 | S36: 0 | U36: 0 | V36: 0
I37: 0 | J37: 0 | L37: 0 | N37: 0 | P37: 0 | Q37: 0 | S37: 0 | U37: 0 | V37: 0
I38: 0 | J38: 0 | L38: 0 | N38: 0 | P38: 0 | Q38: 0 | S38: 0 | U38: 0 | V38: 0
I39: 0 | J39: 0 | L39: 0 | N39: 0 | P39: 0 | Q39: 0 | S39: 0 | U39: 0 | V39: 0
I40: 0 | J40: 0 | L40: 0 | N40: 0 | P40: 0 | Q40: 0 | S40: 0 | U40: 0 | V40: 0
I41: 0 | J41: 0 | L41: 0 | N41: 0 | P41: 0 | Q41: 0 | S41: 0 | U41: 0 | V41: 0
I42: 0 | J42: 0 | L42: 0 | N42: 0 | P42: 0 | Q42: 0 | S42: 0 | U42: 0 | V42: 0
I43: 0 | J43: 0 | L43: 0 | N43: 0 | P43: 0 | Q43: 0 | S43: 0 | U43: 0 | V43: 0
I44: 0 | J44: 0 | L44: 0 | N44: 0 | P44: 0 | Q44: 0 | S44: 0 | U44: 0 | V44: 0
I45: 0 | J45: 0 | L45: 0 | N45: 0 | P45: 0 | Q45: 0 | S45: 0 | U45: 0 | V45: 0
I46: 0 | J46: 0 | L46: 0 | N46: 0 | P46: 0 | Q46: 0 | S46: 0 | U46: 0 | V46: 0
I47: 0 | J47: 0 | L47: 0 | N47: 0 | P47: 0 | Q47: 0 | S47: 0 | U47: 0 | V47: 0
I48: 0 | J48: 0 | L48: 0 | N48: 0 | P48: 0 | Q48: 0 | S48: 0 | U48: 0 | V48: 0
I49: 0 | J49: 0 | L49: 0 | N49: 0 | P49: 0 | Q49: 0 | S49: 0 | U49: 0 | V49: 0
I50: 0 | J50: 0 | L50: 0 | N50: 0 | P50: 0 | Q50: 0 | S50: 0 | U50: 0 | V50: 0
I51: 0 | J51: 0 | L51: 0 | N51: 0 | P51: 0 | Q51: 0 | S51: 0 | U51: 0 | V51: 0
I52: 0 | J52: 0 | L52: 0 | N52: 0 | P52: 0 | Q52: 0 | S52: 0 | U52: 0 | V52: 0
I53: 0 | J53: 0 | L53: 0 | N53: 0 | P53: 0 | Q53: 0 | S53: 0 | U53: 0 | V53: 0
I54: 0 | J54: 0 | L54: 0 | N54: 0 | P54: 0 | Q54: 0 | S54: 0 | U54: 0 | V54: 0
I55: 0 | J55: 0 | L55: 0 | N55: 0 | P55: 0 | Q55: 0 | S55: 0 | U55: 0 | V55: 0
I56: 0 | J56: 0 | L56: 0 | N56: 0 | P56: 0 | Q56: 0 | S56: 0 | U56: 0 | V56: 0
I57: 0 | J57: 0 | L57: 0 | N57: 0 | P57: 0 | Q57: 0 | S57: 0 | U57: 0 | V57: 0
I58: 0 | J58: 0 | L58: 0 | N58: 0 | P58: 0 | Q58: 0 | S58: 0 | U58: 0 | V58: 0
I59: 0 | J59: 0 | L59: 0 | N59: 0 | P59: 0 | Q59: 0 | S59: 0 | U59: 0 | V59: 0
I60: 0 | J60: 0 | L60: 0 | N60: 0 | P60: 0 | Q60: 0 | S60: 0 | U60: 0 | V60: 0
I61: 0 | J61: 0 | L61: 0 | N61: 0 | P61: 0 | Q61: 0 | S61: 0 | U61: 0 | V61: 0
I62: 0 | J62: 0 | L62: 0 | N62: 0 | P62: 0 | Q62: 0 | S62: 0 | U62: 0 | V62: 0
D64: =SUM(D9:D62) -> 0 | F64: =SUM(F9:F62) -> 0 | I64: =SUM(I9:I62) -> 0 | J64: =SUM(J9:J62) -> 0 | L64: =SUM(L9:L62) -> 0 | N64: =SUM(N9:N62) -> 0 | P64: =SUM(P9:P62) -> 0 | Q64: =SUM(Q9:Q62) -> 0 | S64: =SUM(S9:S62) -> 0 | U64: =SUM(U9:U62) -> 0 | V64: =SUM(V9:V62) -> 0

Sheet 2018
P1: Særlig ops. | R1: Beregn | S1: Pension | T1: Beregn | U1: Pension | V1: Pension
C2: 2018-03-01 | O2: 4 | P2: 0.034 | R2: Pension | S2: (A) | T2: Pension | U2: (B) | V2: I alt
C3: 2018-01-01 | M3: 2 | N3: 0.115 | O3: 3 | P3: 0.027 | Q3: Pensions
K4: Beregn | M4: Beregn | N4: Ferie- | P4: SH-, FF- | Q4: grundlag
D5: Krav om | E5: Krav | H5: Indkomst | J5: løn ialt | K5: ferie- | L5: Ferie- | M5: Ferie- | N5: godtgørelse | P5: godtgørelse
A6: Uge nr. | C6: 2018-03-01 | D6: udbetaling | E6: om | G6: Udbetalt | H6: hvoraf der | J6: hvoraf der | K6: tillæg | L6: tillæg | M6: godtg. | N6: i kr. | O6: 2 | P6: 0.093
C7: 2018-01-01 | D7: af | E7: sats | F7: Timer | G7: sats | H7: kun beregnes | J7: beregnes | K7: 1 | L7: 0.01 | M7: 1 | N7: 0.125 | O7: 1 | P7: 0.086 | Q7: 2018-01-01 | R7: 1 | S7: 0.0815 | T7: 1 | U7: 0.04 | V7: =SUM(S7+U7) -> 0.1215
A8: fra | B8: til | C8: Bemærkninger | D8: timer | E8: pr. time | F8: udbetalt | G8: pr. time | H8: pension | I8: Skyldig løn | J8: ferietillæg/godtg. | K8: tast | L8: i kr. | M8: tast | N8: i kr. | O8: tast | P8: i kr. | Q8: i kr. | R8: tast | S8: i kr. | T8: tast | U8: i kr.
I9: =IF((D9*E9>0),(D9*E9)-(F9*G9),IF((D9*E9<0),(D9*E9)-(F9*G9),0)) -> 0 | J9: =IF(AND(E9*D9=0,F9*G9>0),F9*G9,(D9*E9)) -> 0 | L9: =SUM(IF(K9=1,J9*$L$7,J9*0%)) -> 0 | N9: =SUM(IF(M9=1,J9*$N$7,IF(M9=2,J9*$N$3))) -> 0 | P9: =SUM(IF(O9=4,J9*$P$2,IF(O9=3,J9*$P$3,IF(O9=2,J9*$P$6,IF(O9=1,J9*$P$7))))) -> 0 | Q9: =SUM(H9,J9,L9,N9,P9) -> 0 | S9: =IF($R9=1,$Q9*$S$7,$R9*0) -> 0 | U9: =IF($T9=1,$Q9*$U$7,$T9*0) -> 0 | V9: =SUM(S9,U9) -> 0
I10: 0 | J10: 0 | L10: =SUM(IF(K10=1,J10*$L$7,J10*0%)) -> 0 | N10: =SUM(IF(M10=1,J10*$N$7,IF(M10=2,J10*$N$3))) -> 0 | P10: =SUM(IF(O10=4,J10*$P$2,IF(O10=3,J10*$P$3,IF(O10=2,J10*$P$6,IF(O10=1,J10*$P$7))))) -> 0 | Q10: =SUM(H10,J10,L10,N10,P10) -> 0 | S10: =IF($R10=1,$Q10*$S$7,$R10*0) -> 0 | U10: =IF($T10=1,$Q10*$U$7,$T10*0) -> 0 | V10: 0
I11: 0 | J11: 0 | L11: 0 | N11: 0 | P11: 0 | Q11: 0 | S11: 0 | U11: 0 | V11: 0
I12: 0 | J12: 0 | L12: 0 | N12: 0 | P12: 0 | Q12: 0 | S12: 0 | U12: 0 | V12: 0
I13: 0 | J13: 0 | L13: 0 | N13: 0 | P13: 0 | Q13: 0 | S13: 0 | U13: 0 | V13: 0
I14: 0 | J14: 0 | L14: 0 | N14: 0 | P14: 0 | Q14: 0 | S14: 0 | U14: 0 | V14: 0
I15: 0 | J15: 0 | L15: 0 | N15: 0 | P15: 0 | Q15: 0 | S15: 0 | U15: 0 | V15: 0
I16: 0 | J16: 0 | L16: 0 | N16: 0 | P16: 0 | Q16: 0 | S16: 0 | U16: 0 | V16: 0
I17: 0 | J17: 0 | L17: 0 | N17: 0 | P17: 0 | Q17: 0 | S17: 0 | U17: 0 | V17: 0
I18: 0 | J18: 0 | L18: 0 | N18: 0 | P18: 0 | Q18: 0 | S18: 0 | U18: 0 | V18: 0
I19: 0 | J19: 0 | L19: 0 | N19: 0 | P19: 0 | Q19: 0 | S19: 0 | U19: 0 | V19: 0
I20: 0 | J20: 0 | L20: 0 | N20: 0 | P20: 0 | Q20: 0 | S20: 0 | U20: 0 | V20: 0
I21: 0 | J21: 0 | L21: 0 | N21: 0 | P21: 0 | Q21: 0 | S21: 0 | U21: 0 | V21: 0
I22: 0 | J22: 0 | L22: 0 | N22: 0 | P22: 0 | Q22: 0 | S22: 0 | U22: 0 | V22: 0
I23: 0 | J23: 0 | L23: 0 | N23: 0 | P23: 0 | Q23: 0 | S23: 0 | U23: 0 | V23: 0
I24: 0 | J24: 0 | L24: 0 | N24: 0 | P24: 0 | Q24: 0 | S24: 0 | U24: 0 | V24: 0
I25: 0 | J25: 0 | L25: 0 | N25: 0 | P25: 0 | Q25: 0 | S25: 0 | U25: 0 | V25: 0
I26: 0 | J26: 0 | L26: 0 | N26: 0 | P26: 0 | Q26: 0 | S26: 0 | U26: 0 | V26: 0
I27: 0 | J27: 0 | L27: 0 | N27: 0 | P27: 0 | Q27: 0 | S27: 0 | U27: 0 | V27: 0
I28: 0 | J28: 0 | L28: 0 | N28: 0 | P28: 0 | Q28: 0 | S28: 0 | U28: 0 | V28: 0
I29: 0 | J29: 0 | L29: 0 | N29: 0 | P29: 0 | Q29: 0 | S29: 0 | U29: 0 | V29: 0
I30: 0 | J30: 0 | L30: 0 | N30: 0 | P30: 0 | Q30: 0 | S30: 0 | U30: 0 | V30: 0
I31: 0 | J31: 0 | L31: 0 | N31: 0 | P31: 0 | Q31: 0 | S31: 0 | U31: 0 | V31: 0
I32: 0 | J32: 0 | L32: 0 | N32: 0 | P32: 0 | Q32: 0 | S32: 0 | U32: 0 | V32: 0
I33: 0 | J33: 0 | L33: 0 | N33: 0 | P33: 0 | Q33: 0 | S33: 0 | U33: 0 | V33: 0
I34: 0 | J34: 0 | L34: 0 | N34: 0 | P34: 0 | Q34: 0 | S34: 0 | U34: 0 | V34: 0
I35: 0 | J35: 0 | L35: 0 | N35: 0 | P35: 0 | Q35: 0 | S35: 0 | U35: 0 | V35: 0
I36: 0 | J36: 0 | L36: 0 | N36: 0 | P36: 0 | Q36: 0 | S36: 0 | U36: 0 | V36: 0
I37: 0 | J37: 0 | L37: 0 | N37: 0 | P37: 0 | Q37: 0 | S37: 0 | U37: 0 | V37: 0
I38: 0 | J38: 0 | L38: 0 | N38: 0 | P38: 0 | Q38: 0 | S38: 0 | U38: 0 | V38: 0
I39: 0 | J39: 0 | L39: 0 | N39: 0 | P39: 0 | Q39: 0 | S39: 0 | U39: 0 | V39: 0
I40: 0 | J40: 0 | L40: 0 | N40: 0 | P40: 0 | Q40: 0 | S40: 0 | U40: 0 | V40: 0
I41: 0 | J41: 0 | L41: 0 | N41: 0 | P41: 0 | Q41: 0 | S41: 0 | U41: 0 | V41: 0
I42: 0 | J42: 0 | L42: 0 | N42: 0 | P42: 0 | Q42: 0 | S42: 0 | U42: 0 | V42: 0
I43: 0 | J43: 0 | L43: 0 | N43: 0 | P43: 0 | Q43: 0 | S43: 0 | U43: 0 | V43: 0
I44: 0 | J44: 0 | L44: 0 | N44: 0 | P44: 0 | Q44: 0 | S44: 0 | U44: 0 | V44: 0
I45: 0 | J45: 0 | L45: 0 | N45: 0 | P45: 0 | Q45: 0 | S45: 0 | U45: 0 | V45: 0
I46: 0 | J46: 0 | L46: 0 | N46: 0 | P46: 0 | Q46: 0 | S46: 0 | U46: 0 | V46: 0
I47: 0 | J47: 0 | L47: 0 | N47: 0 | P47: 0 | Q47: 0 | S47: 0 | U47: 0 | V47: 0
I48: 0 | J48: 0 | L48: 0 | N48: 0 | P48: 0 | Q48: 0 | S48: 0 | U48: 0 | V48: 0
I49: 0 | J49: 0 | L49: 0 | N49: 0 | P49: 0 | Q49: 0 | S49: 0 | U49: 0 | V49: 0
I50: 0 | J50: 0 | L50: 0 | N50: 0 | P50: 0 | Q50: 0 | S50: 0 | U50: 0 | V50: 0
I51: 0 | J51: 0 | L51: 0 | N51: 0 | P51: 0 | Q51: 0 | S51: 0 | U51: 0 | V51: 0
I52: 0 | J52: 0 | L52: 0 | N52: 0 | P52: 0 | Q52: 0 | S52: 0 | U52: 0 | V52: 0
I53: 0 | J53: 0 | L53: 0 | N53: 0 | P53: 0 | Q53: 0 | S53: 0 | U53: 0 | V53: 0
I54: 0 | J54: 0 | L54: 0 | N54: 0 | P54: 0 | Q54: 0 | S54: 0 | U54: 0 | V54: 0
I55: 0 | J55: 0 | L55: 0 | N55: 0 | P55: 0 | Q55: 0 | S55: 0 | U55: 0 | V55: 0
I56: 0 | J56: 0 | L56: 0 | N56: 0 | P56: 0 | Q56: 0 | S56: 0 | U56: 0 | V56: 0
I57: 0 | J57: 0 | L57: 0 | N57: 0 | P57: 0 | Q57: 0 | S57: 0 | U57: 0 | V57: 0
I58: 0 | J58: 0 | L58: 0 | N58: 0 | P58: 0 | Q58: 0 | S58: 0 | U58: 0 | V58: 0
I59: 0 | J59: 0 | L59: 0 | N59: 0 | P59: 0 | Q59: 0 | S59: 0 | U59: 0 | V59: 0
I60: 0 | J60: 0 | L60: 0 | N60: 0 | P60: 0 | Q60: 0 | S60: 0 | U60: 0 | V60: 0
I61: 0 | J61: 0 | L61: 0 | N61: 0 | P61: 0 | Q61: 0 | S61: 0 | U61: 0 | V61: 0
I62: 0 | J62: 0 | L62: 0 | N62: 0 | P62: 0 | Q62: 0 | S62: 0 | U62: 0 | V62: 0
D64: =SUM(D9:D62) -> 0 | F64: =SUM(F9:F62) -> 0 | I64: =SUM(I9:I62) -> 0 | J64: =SUM(J9:J62) -> 0 | L64: =SUM(L9:L62) -> 0 | N64: =SUM(N9:N62) -> 0 | P64: =SUM(P9:P62) -> 0 | Q64: =SUM(Q9:Q62) -> 0 | S64: =SUM(S9:S62) -> 0 | U64: =SUM(U9:U62) -> 0 | V64: =SUM(V9:V62) -> 0

Sheet 2019
P1: Særlig ops. | R1: Beregn | S1: Pension | T1: Beregn | U1: Pension | V1: Pension
C2: 2019-03-01 | O2: 4 | P2: 0.04 | R2: Pension | S2: (A) | T2: Pension | U2: (B) | V2: I alt
C3: 2019-01-01 | M3: 2 | N3: 0.115 | O3: 3 | P3: 0.034 | Q3: Pensions
K4: Beregn | M4: Beregn | N4: Ferie- | P4: SH-, FF- | Q4: grundlag
D5: Krav om | E5: Krav | H5: Indkomst | J5: løn ialt | K5: ferie- | L5: Ferie- | M5: Ferie- | N5: godtgørelse | P5: godtgørelse
A6: Uge nr. | C6: 2019-03-01 | D6: udbetaling | E6: om | G6: Udbetalt | H6: hvoraf der | J6: hvoraf der | K6: tillæg | L6: tillæg | M6: godtg. | N6: i kr. | O6: 2 | P6: 0.099
C7: 2019-01-01 | D7: af | E7: sats | F7: Timer | G7: sats | H7: kun beregnes | J7: beregnes | K7: 1 | L7: 0.01 | M7: 1 | N7: 0.125 | O7: 1 | P7: 0.093 | Q7: 2019-01-01 | R7: 1 | S7: 0.0815 | T7: 1 | U7: 0.04 | V7: =SUM(S7+U7) -> 0.1215
A8: fra | B8: til | C8: Bemærkninger | D8: timer | E8: pr. time | F8: udbetalt | G8: pr. time | H8: pension | I8: Skyldig løn | J8: ferietillæg/godtg. | K8: tast | L8: i kr. | M8: tast | N8: i kr. | O8: tast | P8: i kr. | Q8: i kr. | R8: tast | S8: i kr. | T8: tast | U8: i kr.
I9: =IF((D9*E9>0),(D9*E9)-(F9*G9),IF((D9*E9<0),(D9*E9)-(F9*G9),0)) -> 0 | J9: =IF(AND(E9*D9=0,F9*G9>0),F9*G9,(D9*E9)) -> 0 | L9: =SUM(IF(K9=1,J9*$L$7,J9*0%)) -> 0 | N9: =SUM(IF(M9=1,J9*$N$7,IF(M9=2,J9*$N$3))) -> 0 | P9: =SUM(IF(O9=4,J9*$P$2,IF(O9=3,J9*$P$3,IF(O9=2,J9*$P$6,IF(O9=1,J9*$P$7))))) -> 0 | Q9: =SUM(H9,J9,L9,N9,P9) -> 0 | S9: =IF($R9=1,$Q9*$S$7,$R9*0) -> 0 | U9: =IF($T9=1,$Q9*$U$7,$T9*0) -> 0 | V9: =SUM(S9,U9) -> 0
I10: 0 | J10: 0 | L10: =SUM(IF(K10=1,J10*$L$7,J10*0%)) -> 0 | N10: =SUM(IF(M10=1,J10*$N$7,IF(M10=2,J10*$N$3))) -> 0 | P10: =SUM(IF(O10=4,J10*$P$2,IF(O10=3,J10*$P$3,IF(O10=2,J10*$P$6,IF(O10=1,J10*$P$7))))) -> 0 | Q10: =SUM(H10,J10,L10,N10,P10) -> 0 | S10: =IF($R10=1,$Q10*$S$7,$R10*0) -> 0 | U10: =IF($T10=1,$Q10*$U$7,$T10*0) -> 0 | V10: 0
I11: 0 | J11: 0 | L11: 0 | N11: 0 | P11: 0 | Q11: 0 | S11: 0 | U11: 0 | V11: 0
I12: 0 | J12: 0 | L12: 0 | N12: 0 | P12: 0 | Q12: 0 | S12: 0 | U12: 0 | V12: 0
I13: 0 | J13: 0 | L13: 0 | N13: 0 | P13: 0 | Q13: 0 | S13: 0 | U13: 0 | V13: 0
I14: 0 | J14: 0 | L14: 0 | N14: 0 | P14: 0 | Q14: 0 | S14: 0 | U14: 0 | V14: 0
I15: 0 | J15: 0 | L15: 0 | N15: 0 | P15: 0 | Q15: 0 | S15: 0 | U15: 0 | V15: 0
I16: 0 | J16: 0 | L16: 0 | N16: 0 | P16: 0 | Q16: 0 | S16: 0 | U16: 0 | V16: 0
I17: 0 | J17: 0 | L17: 0 | N17: 0 | P17: 0 | Q17: 0 | S17: 0 | U17: 0 | V17: 0
I18: 0 | J18: 0 | L18: 0 | N18: 0 | P18: 0 | Q18: 0 | S18: 0 | U18: 0 | V18: 0
I19: 0 | J19: 0 | L19: 0 | N19: 0 | P19: 0 | Q19: 0 | S19: 0 | U19: 0 | V19: 0
I20: 0 | J20: 0 | L20: 0 | N20: 0 | P20: 0 | Q20: 0 | S20: 0 | U20: 0 | V20: 0
I21: 0 | J21: 0 | L21: 0 | N21: 0 | P21: 0 | Q21: 0 | S21: 0 | U21: 0 | V21: 0
I22: 0 | J22: 0 | L22: 0 | N22: 0 | P22: 0 | Q22: 0 | S22: 0 | U22: 0 | V22: 0
I23: 0 | J23: 0 | L23: 0 | N23: 0 | P23: 0 | Q23: 0 | S23: 0 | U23: 0 | V23: 0
I24: 0 | J24: 0 | L24: 0 | N24: 0 | P24: 0 | Q24: 0 | S24: 0 | U24: 0 | V24: 0
I25: 0 | J25: 0 | L25: 0 | N25: 0 | P25: 0 | Q25: 0 | S25: 0 | U25: 0 | V25: 0
I26: 0 | J26: 0 | L26: 0 | N26: 0 | P26: 0 | Q26: 0 | S26: 0 | U26: 0 | V26: 0
I27: 0 | J27: 0 | L27: 0 | N27: 0 | P27: 0 | Q27: 0 | S27: 0 | U27: 0 | V27: 0
I28: 0 | J28: 0 | L28: 0 | N28: 0 | P28: 0 | Q28: 0 | S28: 0 | U28: 0 | V28: 0
I29: 0 | J29: 0 | L29: 0 | N29: 0 | P29: 0 | Q29: 0 | S29: 0 | U29: 0 | V29: 0
I30: 0 | J30: 0 | L30: 0 | N30: 0 | P30: 0 | Q30: 0 | S30: 0 | U30: 0 | V30: 0
I31: 0 | J31: 0 | L31: 0 | N31: 0 | P31: 0 | Q31: 0 | S31: 0 | U31: 0 | V31: 0
I32: 0 | J32: 0 | L32: 0 | N32: 0 | P32: 0 | Q32: 0 | S32: 0 | U32: 0 | V32: 0
I33: 0 | J33: 0 | L33: 0 | N33: 0 | P33: 0 | Q33: 0 | S33: 0 | U33: 0 | V33: 0
I34: 0 | J34: 0 | L34: 0 | N34: 0 | P34: 0 | Q34: 0 | S34: 0 | U34: 0 | V34: 0
I35: 0 | J35: 0 | L35: 0 | N35: 0 | P35: 0 | Q35: 0 | S35: 0 | U35: 0 | V35: 0
I36: 0 | J36: 0 | L36: 0 | N36: 0 | P36: 0 | Q36: 0 | S36: 0 | U36: 0 | V36: 0
I37: 0 | J37: 0 | L37: 0 | N37: 0 | P37: 0 | Q37: 0 | S37: 0 | U37: 0 | V37: 0
I38: 0 | J38: 0 | L38: 0 | N38: 0 | P38: 0 | Q38: 0 | S38: 0 | U38: 0 | V38: 0
I39: 0 | J39: 0 | L39: 0 | N39: 0 | P39: 0 | Q39: 0 | S39: 0 | U39: 0 | V39: 0
I40: 0 | J40: 0 | L40: 0 | N40: 0 | P40: 0 | Q40: 0 | S40: 0 | U40: 0 | V40: 0
I41: 0 | J41: 0 | L41: 0 | N41: 0 | P41: 0 | Q41: 0 | S41: 0 | U41: 0 | V41: 0
I42: 0 | J42: 0 | L42: 0 | N42: 0 | P42: 0 | Q42: 0 | S42: 0 | U42: 0 | V42: 0
I43: 0 | J43: 0 | L43: 0 | N43: 0 | P43: 0 | Q43: 0 | S43: 0 | U43: 0 | V43: 0
I44: 0 | J44: 0 | L44: 0 | N44: 0 | P44: 0 | Q44: 0 | S44: 0 | U44: 0 | V44: 0
I45: 0 | J45: 0 | L45: 0 | N45: 0 | P45: 0 | Q45: 0 | S45: 0 | U45: 0 | V45: 0
I46: 0 | J46: 0 | L46: 0 | N46: 0 | P46: 0 | Q46: 0 | S46: 0 | U46: 0 | V46: 0
I47: 0 | J47: 0 | L47: 0 | N47: 0 | P47: 0 | Q47: 0 | S47: 0 | U47: 0 | V47: 0
I48: 0 | J48: 0 | L48: 0 | N48: 0 | P48: 0 | Q48: 0 | S48: 0 | U48: 0 | V48: 0
I49: 0 | J49: 0 | L49: 0 | N49: 0 | P49: 0 | Q49: 0 | S49: 0 | U49: 0 | V49: 0
I50: 0 | J50: 0 | L50: 0 | N50: 0 | P50: 0 | Q50: 0 | S50: 0 | U50: 0 | V50: 0
I51: 0 | J51: 0 | L51: 0 | N51: 0 | P51: 0 | Q51: 0 | S51: 0 | U51: 0 | V51: 0
I52: 0 | J52: 0 | L52: 0 | N52: 0 | P52: 0 | Q52: 0 | S52: 0 | U52: 0 | V52: 0
I53: 0 | J53: 0 | L53: 0 | N53: 0 | P53: 0 | Q53: 0 | S53: 0 | U53: 0 | V53: 0
I54: 0 | J54: 0 | L54: 0 | N54: 0 | P54: 0 | Q54: 0 | S54: 0 | U54: 0 | V54: 0
I55: 0 | J55: 0 | L55: 0 | N55: 0 | P55: 0 | Q55: 0 | S55: 0 | U55: 0 | V55: 0
I56: 0 | J56: 0 | L56: 0 | N56: 0 | P56: 0 | Q56: 0 | S56: 0 | U56: 0 | V56: 0
I57: 0 | J57: 0 | L57: 0 | N57: 0 | P57: 0 | Q57: 0 | S57: 0 | U57: 0 | V57: 0
I58: 0 | J58: 0 | L58: 0 | N58: 0 | P58: 0 | Q58: 0 | S58: 0 | U58: 0 | V58: 0
I59: 0 | J59: 0 | L59: 0 | N59: 0 | P59: 0 | Q59: 0 | S59: 0 | U59: 0 | V59: 0
I60: 0 | J60: 0 | L60: 0 | N60: 0 | P60: 0 | Q60: 0 | S60: 0 | U60: 0 | V60: 0
I61: 0 | J61: 0 | L61: 0 | N61: 0 | P61: 0 | Q61: 0 | S61: 0 | U61: 0 | V61: 0
I62: 0 | J62: 0 | L62: 0 | N62: 0 | P62: 0 | Q62: 0 | S62: 0 | U62: 0 | V62: 0
D64: =SUM(D9:D62) -> 0 | F64: =SUM(F9:F62) -> 0 | I64: =SUM(I9:I62) -> 0 | J64: =SUM(J9:J62) -> 0 | L64: =SUM(L9:L62) -> 0 | N64: =SUM(N9:N62) -> 0 | P64: =SUM(P9:P62) -> 0 | Q64: =SUM(Q9:Q62) -> 0 | S64: =SUM(S9:S62) -> 0 | U64: =SUM(U9:U62) -> 0 | V64: =SUM(V9:V62) -> 0

Sheet 2020
P1: Særlig ops. | R1: Beregn | S1: Pension | T1: Beregn | U1: Pension | V1: Pension
C2: 2020-05-01 | O2: 5 | P2: 0.01 | R2: Pension | S2: (A) | T2: Pension | U2: (B) | V2: I alt
C3: 2020-05-01 | O3: 4 | P3: 0.05
C4: 2020-01-01 | M4: 2 | N4: 0.115 | O4: 3 | P4: 0.04 | Q4: Pensions
K5: Beregn | M5: Beregn | N5: Ferie- | P5: SH-, FF- | Q5: grundlag
D6: Krav om | E6: Krav | H6: Indkomst | J6: løn ialt | K6: ferie- | L6: Ferie- | M6: Ferie- | N6: godtgørelse | P6: godtgørelse | Q6: Fyldt 18 år | R6: 2 | S6: 0.04 | T6: 2 | U6: 0.02 | V6: =SUM(S6+U6) -> 0.06
A7: Uge nr. | C7: 2020-03-01 | D7: udbetaling | E7: om | G7: Udbetalt | H7: hvoraf der | J7: hvoraf der | K7: tillæg | L7: tillæg | M7: godtg. | N7: i kr. | O7: 2 | P7: 0.109
C8: 2020-01-01 | D8: af | E8: sats | F8: Timer | G8: sats | H8: kun beregnes | J8: beregnes | K8: 1 | L8: 0.01 | M8: 1 | N8: 0.125 | O8: 1 | P8: 0.099 | Q8: 2020-01-01 | R8: 1 | S8: 0.0815 | T8: 1 | U8: 0.04 | V8: =SUM(S8+U8) -> 0.1215
A9: fra | B9: til | C9: Bemærkninger | D9: timer | E9: pr. time | F9: udbetalt | G9: pr. time | H9: pension | I9: Skyldig løn | J9: ferietillæg/godtg. | K9: tast | L9: i kr. | M9: tast | N9: i kr. | O9: tast | P9: i kr. | Q9: i kr. | R9: tast | S9: i kr. | T9: tast | U9: i kr.
I10: =IF((D10*E10>0),(D10*E10)-(F10*G10),IF((D10*E10<0),(D10*E10)-(F10*G10),0)) -> 0 | J10: =IF(AND(E10*D10=0,F10*G10>0),F10*G10,(D10*E10)) -> 0 | L10: =SUM(IF(K10=1,J10*$L$8,J10*0%)) -> 0 | N10: =SUM(IF(M10=1,J10*$N$8,IF(M10=2,J10*$N$4))) -> 0 | P10: =SUM(IF(O10=5,J10*$P$2,(IF(O10=4,J10*$P$3,IF(O10=3,J10*$P$4,IF(O10=2,J10*$P$7,IF(O10=1,J10*$P$8))))))) -> 0 | Q10: =SUM(H10,J10,L10,N10,P10) -> 0 | S10: =SUM(IF(R10=2,Q10*$S$6,IF(R10=1,Q10*$S$8))) -> 0 | U10: =SUM(IF(T10=2,Q10*$U$6,IF(T10=1,Q10*$U$8))) -> 0 | V10: =SUM(S10,U10) -> 0
I11: 0 | J11: 0 | L11: =SUM(IF(K11=1,J11*$L$8,J11*0%)) -> 0 | N11: =SUM(IF(M11=1,J11*$N$8,IF(M11=2,J11*$N$4))) -> 0 | P11: =SUM(IF(O11=5,J11*$P$2,(IF(O11=4,J11*$P$3,IF(O11=3,J11*$P$4,IF(O11=2,J11*$P$7,IF(O11=1,J11*$P$8))))))) -> 0 | Q11: =SUM(H11,J11,L11,N11,P11) -> 0 | S11: =SUM(IF(R11=2,Q11*$S$6,IF(R11=1,Q11*$S$8))) -> 0 | U11: =SUM(IF(T11=2,Q11*$U$6,IF(T11=1,Q11*$U$8))) -> 0 | V11: 0
I12: 0 | J12: 0 | L12: 0 | N12: 0 | P12: 0 | Q12: 0 | S12: 0 | U12: 0 | V12: 0
I13: 0 | J13: 0 | L13: 0 | N13: 0 | P13: 0 | Q13: 0 | S13: 0 | U13: 0 | V13: 0
I14: 0 | J14: 0 | L14: 0 | N14: 0 | P14: 0 | Q14: 0 | S14: 0 | U14: 0 | V14: 0
I15: 0 | J15: 0 | L15: 0 | N15: 0 | P15: 0 | Q15: 0 | S15: 0 | U15: 0 | V15: 0
I16: 0 | J16: 0 | L16: 0 | N16: 0 | P16: 0 | Q16: 0 | S16: 0 | U16: 0 | V16: 0
I17: 0 | J17: 0 | L17: 0 | N17: 0 | P17: 0 | Q17: 0 | S17: 0 | U17: 0 | V17: 0
I18: 0 | J18: 0 | L18: 0 | N18: 0 | P18: 0 | Q18: 0 | S18: 0 | U18: 0 | V18: 0
I19: 0 | J19: 0 | L19: 0 | N19: 0 | P19: 0 | Q19: 0 | S19: 0 | U19: 0 | V19: 0
I20: 0 | J20: 0 | L20: 0 | N20: 0 | P20: 0 | Q20: 0 | S20: 0 | U20: 0 | V20: 0
I21: 0 | J21: 0 | L21: 0 | N21: 0 | P21: 0 | Q21: 0 | S21: 0 | U21: 0 | V21: 0
I22: 0 | J22: 0 | L22: 0 | N22: 0 | P22: 0 | Q22: 0 | S22: 0 | U22: 0 | V22: 0
I23: 0 | J23: 0 | L23: 0 | N23: 0 | P23: 0 | Q23: 0 | S23: 0 | U23: 0 | V23: 0
I24: 0 | J24: 0 | L24: 0 | N24: 0 | P24: 0 | Q24: 0 | S24: 0 | U24: 0 | V24: 0
I25: 0 | J25: 0 | L25: 0 | N25: 0 | P25: 0 | Q25: 0 | S25: 0 | U25: 0 | V25: 0
I26: 0 | J26: 0 | L26: 0 | N26: 0 | P26: 0 | Q26: 0 | S26: 0 | U26: 0 | V26: 0
I27: 0 | J27: 0 | L27: 0 | N27: 0 | P27: 0 | Q27: 0 | S27: 0 | U27: 0 | V27: 0
I28: 0 | J28: 0 | L28: 0 | N28: 0 | P28: 0 | Q28: 0 | S28: 0 | U28: 0 | V28: 0
I29: 0 | J29: 0 | L29: 0 | N29: 0 | P29: 0 | Q29: 0 | S29: 0 | U29: 0 | V29: 0
I30: 0 | J30: 0 | L30: 0 | N30: 0 | P30: 0 | Q30: 0 | S30: 0 | U30: 0 | V30: 0
I31: 0 | J31: 0 | L31: 0 | N31: 0 | P31: 0 | Q31: 0 | S31: 0 | U31: 0 | V31: 0
I32: 0 | J32: 0 | L32: 0 | N32: 0 | P32: 0 | Q32: 0 | S32: 0 | U32: 0 | V32: 0
I33: 0 | J33: 0 | L33: 0 | N33: 0 | P33: 0 | Q33: 0 | S33: 0 | U33: 0 | V33: 0
I34: 0 | J34: 0 | L34: 0 | N34: 0 | P34: 0 | Q34: 0 | S34: 0 | U34: 0 | V34: 0
I35: 0 | J35: 0 | L35: 0 | N35: 0 | P35: 0 | Q35: 0 | S35: 0 | U35: 0 | V35: 0
I36: 0 | J36: 0 | L36: 0 | N36: 0 | P36: 0 | Q36: 0 | S36: 0 | U36: 0 | V36: 0
I37: 0 | J37: 0 | L37: 0 | N37: 0 | P37: 0 | Q37: 0 | S37: 0 | U37: 0 | V37: 0
I38: 0 | J38: 0 | L38: 0 | N38: 0 | P38: 0 | Q38: 0 | S38: 0 | U38: 0 | V38: 0
I39: 0 | J39: 0 | L39: 0 | N39: 0 | P39: 0 | Q39: 0 | S39: 0 | U39: 0 | V39: 0
I40: 0 | J40: 0 | L40: 0 | N40: 0 | P40: 0 | Q40: 0 | S40: 0 | U40: 0 | V40: 0
I41: 0 | J41: 0 | L41: 0 | N41: 0 | P41: 0 | Q41: 0 | S41: 0 | U41: 0 | V41: 0
I42: 0 | J42: 0 | L42: 0 | N42: 0 | P42: 0 | Q42: 0 | S42: 0 | U42: 0 | V42: 0
I43: 0 | J43: 0 | L43: 0 | N43: 0 | P43: 0 | Q43: 0 | S43: 0 | U43: 0 | V43: 0
I44: 0 | J44: 0 | L44: 0 | N44: 0 | P44: 0 | Q44: 0 | S44: 0 | U44: 0 | V44: 0
I45: 0 | J45: 0 | L45: 0 | N45: 0 | P45: 0 | Q45: 0 | S45: 0 | U45: 0 | V45: 0
I46: 0 | J46: 0 | L46: 0 | N46: 0 | P46: 0 | Q46: 0 | S46: 0 | U46: 0 | V46: 0
I47: 0 | J47: 0 | L47: 0 | N47: 0 | P47: 0 | Q47: 0 | S47: 0 | U47: 0 | V47: 0
I48: 0 | J48: 0 | L48: 0 | N48: 0 | P48: 0 | Q48: 0 | S48: 0 | U48: 0 | V48: 0
I49: 0 | J49: 0 | L49: 0 | N49: 0 | P49: 0 | Q49: 0 | S49: 0 | U49: 0 | V49: 0
I50: 0 | J50: 0 | L50: 0 | N50: 0 | P50: 0 | Q50: 0 | S50: 0 | U50: 0 | V50: 0
I51: 0 | J51: 0 | L51: 0 | N51: 0 | P51: 0 | Q51: 0 | S51: 0 | U51: 0 | V51: 0
I52: 0 | J52: 0 | L52: 0 | N52: 0 | P52: 0 | Q52: 0 | S52: 0 | U52: 0 | V52: 0
I53: 0 | J53: 0 | L53: 0 | N53: 0 | P53: 0 | Q53: 0 | S53: 0 | U53: 0 | V53: 0
I54: 0 | J54: 0 | L54: 0 | N54: 0 | P54: 0 | Q54: 0 | S54: 0 | U54: 0 | V54: 0
I55: 0 | J55: 0 | L55: 0 | N55: 0 | P55: 0 | Q55: 0 | S55: 0 | U55: 0 | V55: 0
I56: 0 | J56: 0 | L56: 0 | N56: 0 | P56: 0 | Q56: 0 | S56: 0 | U56: 0 | V56: 0
I57: 0 | J57: 0 | L57: 0 | N57: 0 | P57: 0 | Q57: 0 | S57: 0 | U57: 0 | V57: 0
I58: 0 | J58: 0 | L58: 0 | N58: 0 | P58: 0 | Q58: 0 | S58: 0 | U58: 0 | V58: 0
I59: 0 | J59: 0 | L59: 0 | N59: 0 | P59: 0 | Q59: 0 | S59: 0 | U59: 0 | V59: 0
I60: 0 | J60: 0 | L60: 0 | N60: 0 | P60: 0 | Q60: 0 | S60: 0 | U60: 0 | V60: 0
I61: 0 | J61: 0 | L61: 0 | N61: 0 | P61: 0 | Q61: 0 | S61: 0 | U61: 0 | V61: 0
I62: 0 | J62: 0 | L62: 0 | N62: 0 | P62: 0 | Q62: 0 | S62: 0 | U62: 0 | V62: 0
I63: 0 | J63: 0 | L63: 0 | N63: 0 | P63: 0 | Q63: 0 | S63: 0 | U63: 0 | V63: 0
D65: =SUM(D10:D63) -> 0 | F65: =SUM(F10:F63) -> 0 | I65: =SUM(I10:I63) -> 0 | J65: =SUM(J10:J63) -> 0 | L65: =SUM(L10:L63) -> 0 | N65: =SUM(N10:N63) -> 0 | P65: =SUM(P10:P63) -> 0 | Q65: =SUM(Q10:Q63) -> 0 | S65: =SUM(S10:S63) -> 0 | U65: =SUM(U10:U63) -> 0 | V65: =SUM(V10:V63) -> 0

Sheet 2021
P1: Særlig ops. | R1: Beregn | S1: Pension | T1: Beregn | U1: Pension | V1: Pension
C2: 2021-01-01 | O2: 6 | P2: 0.02 | R2: Pension | S2: (A) | T2: Pension | U2: (B) | V2: I alt
C4: 2021-01-01 | O4: 4 | P4: 0.06
M5: 2 | N5: 0.115 | Q5: Pensions
K6: Beregn | M6: Beregn | N6: Ferie- | P6: SH-, FF- | Q6: grundlag
D7: Krav om | E7: Krav | H7: Indkomst | J7: løn ialt | K7: ferie- | L7: Ferie- | M7: Ferie- | N7: godtgørelse | P7: godtgørelse | Q7: Fyldt 18 år | R7: 2 | S7: 0.04 | T7: 2 | U7: 0.02 | V7: =SUM(S7+U7) -> 0.06
A8: Uge nr. | C8: 2021-01-01 | D8: udbetaling | E8: om | G8: Udbetalt | H8: hvoraf der | J8: hvoraf der | K8: tillæg | L8: tillæg | M8: godtg. | N8: i kr. | O8: 2 | P8: 0.119
D9: af | E9: sats | F9: Timer | G9: sats | H9: kun beregnes | J9: beregnes | K9: 1 | L9: 0.01 | M9: 1 | N9: 0.125 | Q9: 2021-01-01 | R9: 1 | S9: 0.0815 | T9: 1 | U9: 0.04 | V9: =SUM(S9+U9) -> 0.1215
A10: fra | B10: til | C10: Bemærkninger | D10: timer | E10: pr. time | F10: udbetalt | G10: pr. time | H10: pension | I10: Skyldig løn | J10: ferietillæg/godtg. | K10: tast | L10: i kr. | M10: tast | N10: i kr. | O10: tast | P10: i kr. | Q10: i kr. | R10: tast | S10: i kr. | T10: tast | U10: i kr.
I11: =IF((D11*E11>0),(D11*E11)-(F11*G11),IF((D11*E11<0),(D11*E11)-(F11*G11),0)) -> 0 | J11: =IF(AND(E11*D11=0,F11*G11>0),F11*G11,(D11*E11)) -> 0 | L11: =SUM(IF(K11=1,J11*$L$9,J11*0%)) -> 0 | N11: =SUM(IF(M11=1,J11*$N$9,IF(M11=2,J11*$N$5))) -> 0 | P11: =SUM((IF(O11=6,J11*$P$2,IF(O11=4,J11*$P$4,IF(O11=2,J11*$P$8))))) -> 0 | Q11: =SUM(H11,J11,L11,N11,P11) -> 0 | S11: =SUM(IF(R11=2,Q11*$S$7,IF(R11=1,Q11*$S$9))) -> 0 | U11: =SUM(IF(T11=2,Q11*$U$7,IF(T11=1,Q11*$U$9))) -> 0 | V11: =SUM(S11,U11) -> 0
I12: 0 | J12: 0 | L12: 0 | N12: 0 | P12: =SUM((IF(O12=6,J12*$P$2,IF(O12=4,J12*$P$4,IF(O12=2,J12*$P$8))))) -> 0 | Q12: =SUM(H12,J12,L12,N12,P12) -> 0 | S12: 0 | U12: 0 | V12: 0
A13: 28 | B13: 29 | F13: 80 | G13: 129 | I13: 0 | J13: 10320 | L13: 0 | N13: 0 | P13: 0 | Q13: 10320 | S13: 0 | U13: 0 | V13: 0
A14: 28 | B14: 29 | C14: overtidstillæg | D14: 6 | E14: 64.5 | I14: 387 | J14: 387 | L14: 0 | N14: 0 | P14: 0 | Q14: 387 | S14: 0 | U14: 0 | V14: 0
A15: 30 | B15: 31 | F15: 76 | G15: 129 | I15: 0 | J15: 9804 | L15: =SUM(IF(K15=1,J15*$L$9,J15*0%)) -> 0 | N15: 0 | P15: 0 | Q15: 9804 | S15: 0 | U15: 0 | V15: 0
A16: 30 | B16: 31 | C16: overtidstillæg | D16: 2 | E16: 64.5 | I16: 129 | J16: 129 | L16: 0 | N16: 0 | P16: 0 | Q16: 129 | S16: 0 | U16: 0 | V16: 0
I17: 0 | J17: 0 | L17: 0 | N17: 0 | P17: 0 | Q17: 0 | S17: 0 | U17: 0 | V17: 0
I18: 0 | J18: 0 | L18: 0 | N18: 0 | P18: 0 | Q18: 0 | S18: 0 | U18: 0 | V18: 0
I19: 0 | J19: 0 | L19: 0 | N19: 0 | P19: 0 | Q19: 0 | S19: 0 | U19: 0 | V19: 0
I20: 0 | J20: 0 | L20: 0 | N20: 0 | P20: 0 | Q20: 0 | S20: 0 | U20: 0 | V20: 0
I21: 0 | J21: 0 | L21: 0 | N21: 0 | P21: 0 | Q21: 0 | S21: 0 | U21: 0 | V21: 0
I22: 0 | J22: 0 | L22: 0 | N22: 0 | P22: 0 | Q22: 0 | S22: 0 | U22: 0 | V22: 0
I23: 0 | J23: 0 | L23: 0 | N23: 0 | P23: 0 | Q23: 0 | S23: 0 | U23: 0 | V23: 0
I24: 0 | J24: 0 | L24: 0 | N24: 0 | P24: 0 | Q24: 0 | S24: 0 | U24: 0 | V24: 0
I25: 0 | J25: 0 | L25: 0 | N25: 0 | P25: 0 | Q25: 0 | S25: 0 | U25: 0 | V25: 0
I26: 0 | J26: 0 | L26: 0 | N26: 0 | P26: 0 | Q26: 0 | S26: 0 | U26: 0 | V26: 0
I27: 0 | J27: 0 | L27: 0 | N27: 0 | P27: 0 | Q27: 0 | S27: 0 | U27: 0 | V27: 0
I28: 0 | J28: 0 | L28: 0 | N28: 0 | P28: 0 | Q28: 0 | S28: 0 | U28: 0 | V28: 0
I29: 0 | J29: 0 | L29: 0 | N29: 0 | P29: 0 | Q29: 0 | S29: 0 | U29: 0 | V29: 0
I30: 0 | J30: 0 | L30: 0 | N30: 0 | P30: 0 | Q30: 0 | S30: 0 | U30: 0 | V30: 0
I31: 0 | J31: 0 | L31: 0 | N31: 0 | P31: 0 | Q31: 0 | S31: 0 | U31: 0 | V31: 0
I32: 0 | J32: 0 | L32: 0 | N32: 0 | P32: 0 | Q32: 0 | S32: 0 | U32: 0 | V32: 0
I33: 0 | J33: 0 | L33: 0 | N33: 0 | P33: 0 | Q33: 0 | S33: 0 | U33: 0 | V33: 0
I34: 0 | J34: 0 | L34: 0 | N34: 0 | P34: 0 | Q34: 0 | S34: 0 | U34: 0 | V34: 0
I35: 0 | J35: 0 | L35: 0 | N35: 0 | P35: 0 | Q35: 0 | S35: 0 | U35: 0 | V35: 0
I36: 0 | J36: 0 | L36: 0 | N36: 0 | P36: 0 | Q36: 0 | S36: 0 | U36: 0 | V36: 0
I37: 0 | J37: 0 | L37: 0 | N37: 0 | P37: 0 | Q37: 0 | S37: 0 | U37: 0 | V37: 0
I38: 0 | J38: 0 | L38: 0 | N38: 0 | P38: 0 | Q38: 0 | S38: 0 | U38: 0 | V38: 0
I39: 0 | J39: 0 | L39: 0 | N39: 0 | P39: 0 | Q39: 0 | S39: 0 | U39: 0 | V39: 0
I40: 0 | J40: 0 | L40: 0 | N40: 0 | P40: 0 | Q40: 0 | S40: 0 | U40: 0 | V40: 0
I41: 0 | J41: 0 | L41: 0 | N41: 0 | P41: 0 | Q41: 0 | S41: 0 | U41: 0 | V41: 0
I42: 0 | J42: 0 | L42: 0 | N42: 0 | P42: 0 | Q42: 0 | S42: 0 | U42: 0 | V42: 0
I43: =IF((D43*E43>0),(D43*E43)-(F43*G43),IF((D43*E43<0),(D43*E43)-(F43*G43),0)) -> 0 | J43: =IF(AND(E43*D43=0,F43*G43>0),F43*G43,(D43*E43)) -> 0 | L43: 0 | N43: =SUM(IF(M43=1,J43*$N$9,IF(M43=2,J43*$N$5))) -> 0 | P43: 0 | Q43: 0 | S43: =SUM(IF(R43=2,Q43*$S$7,IF(R43=1,Q43*$S$9))) -> 0 | U43: =SUM(IF(T43=2,Q43*$U$7,IF(T43=1,Q43*$U$9))) -> 0 | V43: 0
I44: 0 | J44: 0 | L44: 0 | N44: 0 | P44: 0 | Q44: 0 | S44: 0 | U44: 0 | V44: 0
I45: 0 | J45: 0 | L45: 0 | N45: 0 | P45: 0 | Q45: 0 | S45: 0 | U45: 0 | V45: 0
I46: 0 | J46: 0 | L46: 0 | N46: 0 | P46: 0 | Q46: 0 | S46: 0 | U46: 0 | V46: 0
I47: 0 | J47: 0 | L47: =SUM(IF(K47=1,J47*$L$9,J47*0%)) -> 0 | N47: 0 | P47: 0 | Q47: 0 | S47: 0 | U47: 0 | V47: 0
I48: 0 | J48: 0 | L48: 0 | N48: 0 | P48: 0 | Q48: 0 | S48: 0 | U48: 0 | V48: 0
I49: 0 | J49: 0 | L49: 0 | N49: 0 | P49: 0 | Q49: 0 | S49: 0 | U49: 0 | V49: 0
I50: 0 | J50: 0 | L50: 0 | N50: 0 | P50: 0 | Q50: 0 | S50: 0 | U50: 0 | V50: 0
I51: 0 | J51: 0 | L51: 0 | N51: 0 | P51: 0 | Q51: 0 | S51: 0 | U51: 0 | V51: 0
I52: 0 | J52: 0 | L52: 0 | N52: 0 | P52: 0 | Q52: 0 | S52: 0 | U52: 0 | V52: 0
I53: 0 | J53: 0 | L53: 0 | N53: 0 | P53: 0 | Q53: 0 | S53: 0 | U53: 0 | V53: 0
I54: 0 | J54: 0 | L54: 0 | N54: 0 | P54: 0 | Q54: 0 | S54: 0 | U54: 0 | V54: 0
I55: 0 | J55: 0 | L55: 0 | N55: 0 | P55: 0 | Q55: 0 | S55: 0 | U55: 0 | V55: 0
I56: 0 | J56: 0 | L56: 0 | N56: 0 | P56: 0 | Q56: 0 | S56: 0 | U56: 0 | V56: 0
I57: 0 | J57: 0 | L57: 0 | N57: 0 | P57: 0 | Q57: 0 | S57: 0 | U57: 0 | V57: 0
I58: 0 | J58: 0 | L58: 0 | N58: 0 | P58: 0 | Q58: 0 | S58: 0 | U58: 0 | V58: 0
I59: 0 | J59: 0 | L59: 0 | N59: 0 | P59: 0 | Q59: 0 | S59: 0 | U59: 0 | V59: 0
I60: 0 | J60: 0 | L60: 0 | N60: 0 | P60: 0 | Q60: 0 | S60: 0 | U60: 0 | V60: 0
I61: 0 | J61: 0 | L61: 0 | N61: 0 | P61: 0 | Q61: 0 | S61: 0 | U61: 0 | V61: 0
I62: 0 | J62: 0 | L62: 0 | N62: 0 | P62: 0 | Q62: 0 | S62: 0 | U62: 0 | V62: 0
I63: 0 | J63: 0 | L63: 0 | N63: 0 | P63: 0 | Q63: 0 | S63: 0 | U63: 0 | V63: 0
D65: =SUM(D11:D63) -> 8 | F65: =SUM(F11:F63) -> 156 | I65: =SUM(I11:I63) -> 516 | J65: =SUM(J11:J63) -> 20640 | L65: =SUM(L11:L63) -> 0 | N65: =SUM(N11:N63) -> 0 | P65: =SUM(P11:P63) -> 0 | Q65: =SUM(Q11:Q63) -> 20640 | S65: =SUM(S11:S63) -> 0 | U65: =SUM(U11:U63) -> 0 | V65: =SUM(V11:V63) -> 0

Sheet 2022
P1: Særlig ops. | R1: Beregn | S1: Pension | T1: Beregn | U1: Pension | V1: Pension
C2: 2022-03-01 | O2: 6 | P2: 0.03 | R2: Pension | S2: (A) | T2: Pension | U2: (B) | V2: I alt
C3: 2022-01-01 | O3: 5 | P3: 0.02
C4: 2022-03-01 | O4: 4 | P4: 0.07
C5: 2022-01-01 | M5: 2 | N5: 0.115 | O5: 3 | P5: 0.06 | Q5: Pensions
K6: Beregn | M6: Beregn | N6: Ferie- | P6: SH-, FF- | Q6: grundlag
D7: Krav om | E7: Krav | H7: Indkomst | J7: løn ialt | K7: ferie- | L7: Ferie- | M7: Ferie- | N7: godtgørelse | P7: godtgørelse | Q7: Fyldt 18 år | R7: 2 | S7: 0.04 | T7: 2 | U7: 0.02 | V7: =SUM(S7+U7) -> 0.06
A8: Uge nr. | C8: 2022-03-01 | D8: udbetaling | E8: om | G8: Udbetalt | H8: hvoraf der | J8: hvoraf der | K8: tillæg | L8: tillæg | M8: godtg. | N8: i kr. | O8: 2 | P8: 0.129
C9: 2022-01-01 | D9: af | E9: sats | F9: Timer | G9: sats | H9: kun beregnes | J9: beregnes | K9: 1 | L9: 0.01 | M9: 1 | N9: 0.125 | O9: 1 | P9: 0.119 | Q9: 2022-01-01 | R9: 1 | S9: 0.0815 | T9: 1 | U9: 0.04 | V9: =SUM(S9+U9) -> 0.1215
A10: fra | B10: til | C10: Bemærkninger | D10: timer | E10: pr. time | F10: udbetalt | G10: pr. time | H10: pension | I10: Skyldig løn | J10: ferietillæg/godtg. | K10: tast | L10: i kr. | M10: tast | N10: i kr. | O10: tast | P10: i kr. | Q10: i kr. | R10: tast | S10: i kr. | T10: tast | U10: i kr.
I11: =IF((D11*E11>0),(D11*E11)-(F11*G11),IF((D11*E11<0),(D11*E11)-(F11*G11),0)) -> 0 | J11: =IF(AND(E11*D11=0,F11*G11>0),F11*G11,(D11*E11)) -> 0 | L11: =SUM(IF(K11=1,J11*$L$9,J11*0%)) -> 0 | N11: =SUM(IF(M11=1,J11*$N$9,IF(M11=2,J11*$N$5))) -> 0 | P11: =SUM(IF(O11=6,J11*$P$2,IF(O11=5,J11*$P$3,IF(O11=4,J11*$P$4,IF(O11=3,J11*$P$5,IF(O11=2,J11*$P$8,IF(O11=1,J11*$P$9))))))) -> 0 | Q11: =SUM(H11,J11,L11,N11,P11) -> 0 | S11: =SUM(IF(R11=2,Q11*$S$7,IF(R11=1,Q11*$S$9))) -> 0 | U11: =SUM(IF(T11=2,Q11*$U$7,IF(T11=1,Q11*$U$9))) -> 0 | V11: =SUM(S11,U11) -> 0
I12: 0 | J12: 0 | L12: =SUM(IF(K12=1,J12*$L$9,J12*0%)) -> 0 | N12: =SUM(IF(M12=1,J12*$N$9,IF(M12=2,J12*$N$5))) -> 0 | P12: =SUM(IF(O12=6,J12*$P$2,IF(O12=5,J12*$P$3,IF(O12=4,J12*$P$4,IF(O12=3,J12*$P$5,IF(O12=2,J12*$P$8,IF(O12=1,J12*$P$9))))))) -> 0 | Q12: =SUM(H12,J12,L12,N12,P12) -> 0 | S12: =SUM(IF(R12=2,Q12*$S$7,IF(R12=1,Q12*$S$9))) -> 0 | U12: =SUM(IF(T12=2,Q12*$U$7,IF(T12=1,Q12*$U$9))) -> 0 | V12: =SUM(S12,U12) -> 0
I13: 0 | J13: 0 | L13: 0 | N13: 0 | P13: 0 | Q13: 0 | S13: 0 | U13: 0 | V13: 0
I14: 0 | J14: 0 | L14: 0 | N14: 0 | P14: 0 | Q14: 0 | S14: 0 | U14: 0 | V14: 0
I15: 0 | J15: 0 | L15: 0 | N15: 0 | P15: 0 | Q15: 0 | S15: 0 | U15: 0 | V15: 0
I16: 0 | J16: 0 | L16: 0 | N16: 0 | P16: 0 | Q16: 0 | S16: 0 | U16: 0 | V16: 0
I17: 0 | J17: 0 | L17: 0 | N17: 0 | P17: 0 | Q17: 0 | S17: 0 | U17: 0 | V17: 0
I18: 0 | J18: 0 | L18: 0 | N18: 0 | P18: 0 | Q18: 0 | S18: 0 | U18: 0 | V18: 0
I19: 0 | J19: 0 | L19: 0 | N19: 0 | P19: 0 | Q19: 0 | S19: 0 | U19: 0 | V19: 0
I20: 0 | J20: 0 | L20: 0 | N20: 0 | P20: 0 | Q20: 0 | S20: 0 | U20: 0 | V20: 0
I21: 0 | J21: 0 | L21: 0 | N21: 0 | P21: 0 | Q21: 0 | S21: 0 | U21: 0 | V21: 0
I22: 0 | J22: 0 | L22: 0 | N22: 0 | P22: 0 | Q22: 0 | S22: 0 | U22: 0 | V22: 0
I23: 0 | J23: 0 | L23: 0 | N23: 0 | P23: 0 | Q23: 0 | S23: 0 | U23: 0 | V23: 0
I24: 0 | J24: 0 | L24: 0 | N24: 0 | P24: 0 | Q24: 0 | S24: 0 | U24: 0 | V24: 0
I25: 0 | J25: 0 | L25: 0 | N25: 0 | P25: 0 | Q25: 0 | S25: 0 | U25: 0 | V25: 0
I26: 0 | J26: 0 | L26: 0 | N26: 0 | P26: 0 | Q26: 0 | S26: 0 | U26: 0 | V26: 0
I27: 0 | J27: 0 | L27: 0 | N27: 0 | P27: 0 | Q27: 0 | S27: 0 | U27: 0 | V27: 0
I28: 0 | J28: 0 | L28: 0 | N28: 0 | P28: 0 | Q28: 0 | S28: 0 | U28: 0 | V28: 0
I29: 0 | J29: 0 | L29: 0 | N29: 0 | P29: 0 | Q29: 0 | S29: 0 | U29: 0 | V29: 0
I30: 0 | J30: 0 | L30: 0 | N30: 0 | P30: 0 | Q30: 0 | S30: 0 | U30: 0 | V30: 0
I31: 0 | J31: 0 | L31: 0 | N31: 0 | P31: 0 | Q31: 0 | S31: 0 | U31: 0 | V31: 0
I32: 0 | J32: 0 | L32: 0 | N32: 0 | P32: 0 | Q32: 0 | S32: 0 | U32: 0 | V32: 0
I33: 0 | J33: 0 | L33: 0 | N33: 0 | P33: 0 | Q33: 0 | S33: 0 | U33: 0 | V33: 0
I34: 0 | J34: 0 | L34: 0 | N34: 0 | P34: 0 | Q34: 0 | S34: 0 | U34: 0 | V34: 0
I35: 0 | J35: 0 | L35: 0 | N35: 0 | P35: 0 | Q35: 0 | S35: 0 | U35: 0 | V35: 0
I36: 0 | J36: 0 | L36: 0 | N36: 0 | P36: 0 | Q36: 0 | S36: 0 | U36: 0 | V36: 0
I37: 0 | J37: 0 | L37: 0 | N37: 0 | P37: 0 | Q37: 0 | S37: 0 | U37: 0 | V37: 0
I38: 0 | J38: 0 | L38: 0 | N38: 0 | P38: 0 | Q38: 0 | S38: 0 | U38: 0 | V38: 0
I39: 0 | J39: 0 | L39: 0 | N39: 0 | P39: 0 | Q39: 0 | S39: 0 | U39: 0 | V39: 0
I40: 0 | J40: 0 | L40: 0 | N40: 0 | P40: 0 | Q40: 0 | S40: 0 | U40: 0 | V40: 0
I41: 0 | J41: 0 | L41: 0 | N41: 0 | P41: 0 | Q41: 0 | S41: 0 | U41: 0 | V41: 0
I42: 0 | J42: 0 | L42: 0 | N42: 0 | P42: 0 | Q42: 0 | S42: 0 | U42: 0 | V42: 0
I43: =IF((D43*E43>0),(D43*E43)-(F43*G43),IF((D43*E43<0),(D43*E43)-(F43*G43),0)) -> 0 | J43: =IF(AND(E43*D43=0,F43*G43>0),F43*G43,(D43*E43)) -> 0 | L43: 0 | N43: 0 | P43: 0 | Q43: 0 | S43: 0 | U43: 0 | V43: 0
I44: 0 | J44: 0 | L44: 0 | N44: 0 | P44: 0 | Q44: 0 | S44: 0 | U44: 0 | V44: 0
I45: 0 | J45: 0 | L45: 0 | N45: 0 | P45: 0 | Q45: 0 | S45: 0 | U45: 0 | V45: 0
I46: 0 | J46: 0 | L46: 0 | N46: 0 | P46: 0 | Q46: 0 | S46: 0 | U46: 0 | V46: 0
I47: 0 | J47: 0 | L47: 0 | N47: 0 | P47: 0 | Q47: 0 | S47: 0 | U47: 0 | V47: 0
I48: 0 | J48: 0 | L48: 0 | N48: 0 | P48: 0 | Q48: 0 | S48: 0 | U48: 0 | V48: 0
I49: 0 | J49: 0 | L49: 0 | N49: 0 | P49: 0 | Q49: 0 | S49: 0 | U49: 0 | V49: 0
I50: 0 | J50: 0 | L50: 0 | N50: 0 | P50: 0 | Q50: 0 | S50: 0 | U50: 0 | V50: 0
I51: 0 | J51: 0 | L51: 0 | N51: 0 | P51: 0 | Q51: 0 | S51: 0 | U51: 0 | V51: 0
I52: 0 | J52: 0 | L52: 0 | N52: 0 | P52: 0 | Q52: 0 | S52: 0 | U52: 0 | V52: 0
I53: 0 | J53: 0 | L53: 0 | N53: 0 | P53: 0 | Q53: 0 | S53: 0 | U53: 0 | V53: 0
I54: 0 | J54: 0 | L54: 0 | N54: 0 | P54: 0 | Q54: 0 | S54: 0 | U54: 0 | V54: 0
I55: 0 | J55: 0 | L55: 0 | N55: 0 | P55: 0 | Q55: 0 | S55: 0 | U55: 0 | V55: 0
I56: 0 | J56: 0 | L56: 0 | N56: 0 | P56: 0 | Q56: 0 | S56: 0 | U56: 0 | V56: 0
I57: 0 | J57: 0 | L57: 0 | N57: 0 | P57: 0 | Q57: 0 | S57: 0 | U57: 0 | V57: 0
I58: 0 | J58: 0 | L58: 0 | N58: 0 | P58: 0 | Q58: 0 | S58: 0 | U58: 0 | V58: 0
I59: 0 | J59: 0 | L59: 0 | N59: 0 | P59: 0 | Q59: 0 | S59: 0 | U59: 0 | V59: 0
I60: 0 | J60: 0 | L60: 0 | N60: 0 | P60: 0 | Q60: 0 | S60: 0 | U60: 0 | V60: 0
I61: 0 | J61: 0 | L61: 0 | N61: 0 | P61: 0 | Q61: 0 | S61: 0 | U61: 0 | V61: 0
I62: 0 | J62: 0 | L62: 0 | N62: 0 | P62: 0 | Q62: 0 | S62: 0 | U62: 0 | V62: 0
I63: 0 | J63: 0 | L63: 0 | N63: 0 | P63: 0 | Q63: 0 | S63: 0 | U63: 0 | V63: 0
D65: =SUM(D11:D63) -> 0 | F65: =SUM(F11:F63) -> 0 | I65: =SUM(I11:I63) -> 0 | J65: =SUM(J11:J63) -> 0 | L65: =SUM(L11:L63) -> 0 | N65: =SUM(N11:N63) -> 0 | P65: =SUM(P11:P63) -> 0 | Q65: =SUM(Q11:Q63) -> 0 | S65: =SUM(S11:S63) -> 0 | U65: =SUM(U11:U63) -> 0 | V65: =SUM(V11:V63) -> 0

Sheet 2023
P1: Særlig ops. | R1: Beregn | S1: Pension | T1: Beregn | U1: Pension | V1: Pension
C2: 2023-01-01 | O2: 6 | P2: 0.03 | R2: Pension | S2: (A) | T2: Pension | U2: (B) | V2: I alt
C4: 2023-01-01 | O4: 4 | P4: 0.07
M5: 2 | N5: 0.115 | Q5: Pensions
K6: Beregn | M6: Beregn | N6: Ferie- | P6: SH-, FF- | Q6: grundlag
D7: Krav om | E7: Krav | H7: Indkomst | J7: løn ialt | K7: ferie- | L7: Ferie- | M7: Ferie- | N7: godtgørelse | P7: godtgørelse | Q7: Fyldt 18 år | R7: 2 | S7: 0.04 | T7: 2 | U7: 0.02 | V7: =SUM(S7+U7) -> 0.06
A8: Uge nr. | C8: 2023-01-01 | D8: udbetaling | E8: om | G8: Udbetalt | H8: hvoraf der | J8: hvoraf der | K8: tillæg | L8: tillæg | M8: godtg. | N8: i kr. | O8: 2 | P8: 0.129
D9: af | E9: sats | F9: Timer | G9: sats | H9: kun beregnes | J9: beregnes | K9: 1 | L9: 0.01 | M9: 1 | N9: 0.125 | Q9: 2023-01-01 | R9: 1 | S9: 0.0815 | T9: 1 | U9: 0.04 | V9: =SUM(S9+U9) -> 0.1215
A10: fra | B10: til | C10: Bemærkninger | D10: timer | E10: pr. time | F10: udbetalt | G10: pr. time | H10: pension | I10: Skyldig løn | J10: ferietillæg/godtg. | K10: tast | L10: i kr. | M10: tast | N10: i kr. | O10: tast | P10: i kr. | Q10: i kr. | R10: tast | S10: i kr. | T10: tast | U10: i kr.
I11: =IF((D11*E11>0),(D11*E11)-(F11*G11),IF((D11*E11<0),(D11*E11)-(F11*G11),0)) -> 0 | J11: =IF(AND(E11*D11=0,F11*G11>0),F11*G11,(D11*E11)) -> 0 | L11: =SUM(IF(K11=1,J11*$L$9,J11*0%)) -> 0 | N11: =SUM(IF(M11=1,J11*$N$9,IF(M11=2,J11*$N$5))) -> 0 | P11: =SUM(IF(O11=6,J11*$P$2,IF(O11=4,J11*$P$4,IF(O11=2,J11*$P$8)))) -> 0 | Q11: =SUM(H11,J11,L11,N11,P11) -> 0 | S11: =SUM(IF(R11=2,Q11*$S$7,IF(R11=1,Q11*$S$9))) -> 0 | U11: =SUM(IF(T11=2,Q11*$U$7,IF(T11=1,Q11*$U$9))) -> 0 | V11: =SUM(S11,U11) -> 0
I12: 0 | J12: 0 | L12: 0 | N12: 0 | P12: =SUM(IF(O12=6,J12*$P$2,IF(O12=4,J12*$P$4,IF(O12=2,J12*$P$8)))) -> 0 | Q12: =SUM(H12,J12,L12,N12,P12) -> 0 | S12: 0 | U12: 0 | V12: 0
I13: 0 | J13: 0 | L13: 0 | N13: 0 | P13: 0 | Q13: 0 | S13: 0 | U13: 0 | V13: 0
I14: 0 | J14: 0 | L14: 0 | N14: 0 | P14: 0 | Q14: 0 | S14: 0 | U14: 0 | V14: 0
I15: 0 | J15: 0 | L15: =SUM(IF(K15=1,J15*$L$9,J15*0%)) -> 0 | N15: =SUM(IF(M15=1,J15*$N$9,IF(M15=2,J15*$N$5))) -> 0 | P15: 0 | Q15: 0 | S15: =SUM(IF(R15=2,Q15*$S$7,IF(R15=1,Q15*$S$9))) -> 0 | U15: =SUM(IF(T15=2,Q15*$U$7,IF(T15=1,Q15*$U$9))) -> 0 | V15: =SUM(S15,U15) -> 0
I16: 0 | J16: 0 | L16: 0 | N16: 0 | P16: 0 | Q16: 0 | S16: 0 | U16: 0 | V16: 0
I17: 0 | J17: 0 | L17: 0 | N17: 0 | P17: 0 | Q17: 0 | S17: 0 | U17: 0 | V17: 0
I18: 0 | J18: 0 | L18: 0 | N18: 0 | P18: 0 | Q18: 0 | S18: 0 | U18: 0 | V18: 0
I19: 0 | J19: 0 | L19: 0 | N19: 0 | P19: 0 | Q19: 0 | S19: 0 | U19: 0 | V19: 0
I20: 0 | J20: 0 | L20: 0 | N20: 0 | P20: 0 | Q20: 0 | S20: 0 | U20: 0 | V20: 0
I21: 0 | J21: 0 | L21: 0 | N21: 0 | P21: 0 | Q21: 0 | S21: 0 | U21: 0 | V21: 0
I22: 0 | J22: 0 | L22: 0 | N22: 0 | P22: 0 | Q22: 0 | S22: 0 | U22: 0 | V22: 0
I23: 0 | J23: 0 | L23: 0 | N23: 0 | P23: 0 | Q23: 0 | S23: 0 | U23: 0 | V23: 0
I24: 0 | J24: 0 | L24: 0 | N24: 0 | P24: 0 | Q24: 0 | S24: 0 | U24: 0 | V24: 0
I25: 0 | J25: 0 | L25: 0 | N25: 0 | P25: 0 | Q25: 0 | S25: 0 | U25: 0 | V25: 0
I26: 0 | J26: 0 | L26: 0 | N26: 0 | P26: 0 | Q26: 0 | S26: 0 | U26: 0 | V26: 0
I27: 0 | J27: 0 | L27: 0 | N27: 0 | P27: 0 | Q27: 0 | S27: 0 | U27: 0 | V27: 0
I28: 0 | J28: 0 | L28: 0 | N28: 0 | P28: 0 | Q28: 0 | S28: 0 | U28: 0 | V28: 0
I29: 0 | J29: 0 | L29: 0 | N29: 0 | P29: 0 | Q29: 0 | S29: 0 | U29: 0 | V29: 0
I30: 0 | J30: 0 | L30: 0 | N30: 0 | P30: 0 | Q30: 0 | S30: 0 | U30: 0 | V30: 0
I31: 0 | J31: 0 | L31: 0 | N31: 0 | P31: 0 | Q31: 0 | S31: 0 | U31: 0 | V31: 0
I32: 0 | J32: 0 | L32: 0 | N32: 0 | P32: 0 | Q32: 0 | S32: 0 | U32: 0 | V32: 0
I33: 0 | J33: 0 | L33: 0 | N33: 0 | P33: 0 | Q33: 0 | S33: 0 | U33: 0 | V33: 0
I34: 0 | J34: 0 | L34: 0 | N34: 0 | P34: 0 | Q34: 0 | S34: 0 | U34: 0 | V34: 0
I35: 0 | J35: 0 | L35: 0 | N35: 0 | P35: 0 | Q35: 0 | S35: 0 | U35: 0 | V35: 0
I36: 0 | J36: 0 | L36: 0 | N36: 0 | P36: 0 | Q36: 0 | S36: 0 | U36: 0 | V36: 0
I37: 0 | J37: 0 | L37: 0 | N37: 0 | P37: 0 | Q37: 0 | S37: 0 | U37: 0 | V37: 0
I38: 0 | J38: 0 | L38: 0 | N38: 0 | P38: 0 | Q38: 0 | S38: 0 | U38: 0 | V38: 0
I39: 0 | J39: 0 | L39: 0 | N39: 0 | P39: 0 | Q39: 0 | S39: 0 | U39: 0 | V39: 0
I40: 0 | J40: 0 | L40: 0 | N40: 0 | P40: 0 | Q40: 0 | S40: 0 | U40: 0 | V40: 0
I41: 0 | J41: 0 | L41: 0 | N41: 0 | P41: 0 | Q41: 0 | S41: 0 | U41: 0 | V41: 0
I42: =IF((D42*E42>0),(D42*E42)-(F42*G42),IF((D42*E42<0),(D42*E42)-(F42*G42),0)) -> 0 | J42: =IF(AND(E42*D42=0,F42*G42>0),F42*G42,(D42*E42)) -> 0 | L42: 0 | N42: 0 | P42: 0 | Q42: 0 | S42: 0 | U42: 0 | V42: 0
I43: 0 | J43: 0 | L43: 0 | N43: 0 | P43: 0 | Q43: 0 | S43: 0 | U43: 0 | V43: 0
I44: 0 | J44: 0 | L44: 0 | N44: 0 | P44: 0 | Q44: 0 | S44: 0 | U44: 0 | V44: 0
I45: 0 | J45: 0 | L45: 0 | N45: 0 | P45: 0 | Q45: 0 | S45: 0 | U45: 0 | V45: 0
I46: 0 | J46: 0 | L46: =SUM(IF(K46=1,J46*$L$9,J46*0%)) -> 0 | N46: 0 | P46: 0 | Q46: 0 | S46: 0 | U46: 0 | V46: 0
I47: 0 | J47: 0 | L47: 0 | N47: 0 | P47: 0 | Q47: 0 | S47: 0 | U47: 0 | V47: 0
I48: 0 | J48: 0 | L48: 0 | N48: 0 | P48: 0 | Q48: 0 | S48: 0 | U48: 0 | V48: 0
I49: 0 | J49: 0 | L49: 0 | N49: 0 | P49: 0 | Q49: 0 | S49: 0 | U49: 0 | V49: 0
I50: 0 | J50: 0 | L50: 0 | N50: 0 | P50: 0 | Q50: 0 | S50: 0 | U50: 0 | V50: 0
I51: 0 | J51: 0 | L51: 0 | N51: 0 | P51: 0 | Q51: 0 | S51: 0 | U51: 0 | V51: 0
I52: 0 | J52: 0 | L52: 0 | N52: 0 | P52: 0 | Q52: 0 | S52: 0 | U52: 0 | V52: 0
I53: 0 | J53: 0 | L53: 0 | N53: 0 | P53: 0 | Q53: 0 | S53: 0 | U53: 0 | V53: 0
I54: 0 | J54: 0 | L54: 0 | N54: 0 | P54: 0 | Q54: 0 | S54: 0 | U54: 0 | V54: 0
I55: 0 | J55: 0 | L55: 0 | N55: 0 | P55: 0 | Q55: 0 | S55: 0 | U55: 0 | V55: 0
I56: 0 | J56: 0 | L56: 0 | N56: 0 | P56: 0 | Q56: 0 | S56: 0 | U56: 0 | V56: 0
I57: 0 | J57: 0 | L57: 0 | N57: 0 | P57: 0 | Q57: 0 | S57: 0 | U57: 0 | V57: 0
I58: 0 | J58: 0 | L58: 0 | N58: 0 | P58: 0 | Q58: 0 | S58: 0 | U58: 0 | V58: 0
I59: 0 | J59: 0 | L59: 0 | N59: 0 | P59: 0 | Q59: 0 | S59: 0 | U59: 0 | V59: 0
I60: 0 | J60: 0 | L60: 0 | N60: 0 | P60: 0 | Q60: 0 | S60: 0 | U60: 0 | V60: 0
I61: 0 | J61: 0 | L61: 0 | N61: 0 | P61: 0 | Q61: 0 | S61: 0 | U61: 0 | V61: 0
I62: 0 | J62: 0 | L62: 0 | N62: 0 | P62: 0 | Q62: 0 | S62: 0 | U62: 0 | V62: 0
I63: 0 | J63: 0 | L63: 0 | N63: 0 | P63: 0 | Q63: 0 | S63: =SUM(IF(R63=2,Q63*$S$7,IF(R63=1,Q63*$S$9))) -> 0 | U63: =SUM(IF(T63=2,Q63*$U$7,IF(T63=1,Q63*$U$9))) -> 0 | V63: 0
D65: =SUM(D11:D63) -> 0 | F65: =SUM(F11:F63) -> 0 | I65: =SUM(I11:I63) -> 0 | J65: =SUM(J11:J63) -> 0 | L65: =SUM(L11:L63) -> 0 | N65: =SUM(N11:N63) -> 0 | P65: =SUM(P11:P63) -> 0 | Q65: =SUM(Q11:Q63) -> 0 | S65: =SUM(S11:S63) -> 0 | U65: =SUM(U11:U63) -> 0 | V65: =SUM(V11:V63) -> 0

Sheet Ferietillæg - á conto
B1: 2010 | C1: 2011 | D1: 2012 | E1: 2013 | F1: 2014 | G1: 2015 | H1: 2016 | I1: 2017 | J1: 2018 | K1: 2019 | L1: 2020 | M1: 2021 | N1: 2022 | O1: 2023
A2: Januar
A4: Februar
A6: Marts
A8: April
A10: Maj
A12: Juni
A14: Juli
A16: August
A18: September
A20: Oktober
A22: November
A24: December
B27: =SUM(B2:B25) -> 0 | C27: 0 | D27: 0 | E27: 0 | F27: 0 | G27: 0 | H27: 0 | I27: 0 | J27: 0 | K27: 0 | L27: 0 | M27: 0 | N27: 0 | O27: 0

Sheet Feriekort - á conto
B1: 2010 | C1: 2011 | D1: 2012 | E1: 2013 | F1: 2014 | G1: 2015 | H1: 2016 | I1: 2017 | J1: 2018 | K1: 2019 | L1: 2020 | M1: 2021 | N1: 2022 | O1: 2023
A2: Januar
A4: Februar
A6: Marts
A8: April
A10: Maj
A12: Juni
A14: Juli
A16: August
A18: September
A20: Oktober
A22: November
A24: December
B27: =SUM(B2:B25) -> 0 | C27: 0 | D27: 0 | E27: 0 | F27: 0 | G27: =SUM(G2:G25) -> 0 | H27: =SUM(H2:H25) -> 0 | I27: =SUM(I2:I25) -> 0 | J27: 0 | K27: 0 | L27: 0 | M27: 0 | N27: 0 | O27: 0

Sheet SO, SH og FF - á conto
B1: 2010 | C1: 2011 | D1: 2012 | E1: 2013 | F1: 2014 | G1: 2015 | H1: 2016 | I1: 2017 | J1: 2018 | K1: 2019 | L1: 2020 | M1: 2021 | N1: 2022 | O1: 2023
A2: Januar
A4: Februar
A6: Marts
A8: April
A10: Maj
A12: Juni
A14: Juli
A16: August
A18: September
A20: Oktober
A22: November
A24: December
B27: =SUM(B2:B25) -> 0 | C27: 0 | D27: 0 | E27: 0 | F27: 0 | G27: =SUM(G2:G25) -> 0 | H27: =SUM(H2:H25) -> 0 | I27: =SUM(I2:I25) -> 0 | J27: =SUM(J2:J25) -> 0 | K27: 0 | L27: 0 | M27: 0 | N27: 0 | O27: 0

Sheet Pension
B1: 2010 | C1: 2011 | D1: 2012 | E1: 2013 | F1: 2014 | G1: 2015 | H1: 2016 | I1: 2017 | J1: 2018 | K1: 2019 | L1: 2020 | M1: 2021 | N1: 2022 | O1: 2023
A2: Januar
A4: Februar
A6: Marts
A8: April
A10: Maj
A12: Juni
A14: Juli
A16: August
A18: September
A20: Oktober
A22: November
A24: December
B27: =SUM(B2:B25) -> 0 | C27: 0 | D27: 0 | E27: 0 | F27: 0 | G27: 0 | H27: 0 | I27: 0 | J27: 0 | K27: 0 | L27: 0 | M27: 0 | N27: 0 | O27: 0

Sheet Opgørelse
E1: Særlig ops.
B2: Skyldig | C2: Ferie- | D2: Ferie- | E2: SH-, og | F2: Pension
B3: Løn | C3: tillæg | D3: godtgørelse | E3: Feriefridags | F3: i alt
E4: godtgørelse
A5: 2010 | B5: =SUM('2010'!I64) -> 0 | C5: =SUM('2010'!L64) -> 0 | D5: =SUM('2010'!N64) -> 0 | E5: =SUM('2010'!P64) -> 0 | F5: =SUM('2010'!V64) -> 0
A6: 2011 | B6: =SUM('2011'!I64) -> 0 | C6: =SUM('2011'!L64) -> 0 | D6: =SUM('2011'!N64) -> 0 | E6: =SUM('2011'!P64) -> 0 | F6: =SUM('2011'!V64) -> 0
A7: 2012 | B7: =SUM('2012'!I64) -> 0 | C7: =SUM('2012'!L64) -> 0 | D7: =SUM('2012'!N64) -> 0 | E7: =SUM('2012'!P64) -> 0 | F7: =SUM('2012'!V64) -> 0
A8: 2013 | B8: =SUM('2013'!I64) -> 0 | C8: =SUM('2013'!L64) -> 0 | D8: =SUM('2013'!N64) -> 0 | E8: =SUM('2013'!P64) -> 0 | F8: =SUM('2013'!V64) -> 0
A9: 2014 | B9: =SUM('2014'!I64) -> 0 | C9: =SUM('2014'!L64) -> 0 | D9: =SUM('2014'!N64) -> 0 | E9: =SUM('2014'!P64) -> 0 | F9: =SUM('2014'!V64) -> 0
A10: 2015 | B10: =SUM('2015'!I64) -> 0 | C10: =SUM('2015'!L64) -> 0 | D10: =SUM('2015'!N64) -> 0 | E10: =SUM('2015'!P64) -> 0 | F10: =SUM('2015'!V64) -> 0
A11: 2016 | B11: =SUM('2016'!I64) -> 0 | C11: =SUM('2016'!L64) -> 0 | D11: =SUM('2016'!N64) -> 0 | E11: =SUM('2016'!P64) -> 0 | F11: =SUM('2016'!V64) -> 0
A12: 2017 | B12: =SUM('2017'!I64) -> 0 | C12: =SUM('2017'!L64) -> 0 | D12: =SUM('2017'!N64) -> 0 | E12: =SUM('2017'!P64) -> 0 | F12: =SUM('2017'!V64) -> 0
A13: 2018 | B13: =SUM('2018'!I64) -> 0 | C13: =SUM('2018'!L64) -> 0 | D13: =SUM('2018'!N64) -> 0 | E13: =SUM('2018'!P64) -> 0 | F13: =SUM('2018'!V64) -> 0
A14: 2019 | B14: =SUM('2019'!I64) -> 0 | C14: =SUM('2019'!L64) -> 0 | D14: =SUM('2019'!N64) -> 0 | E14: =SUM('2019'!P64) -> 0 | F14: =SUM('2019'!V64) -> 0
A15: 2020 | B15: =SUM('2020'!I65) -> 0 | C15: =SUM('2020'!L65) -> 0 | D15: =SUM('2020'!N65) -> 0 | E15: =SUM('2020'!P65) -> 0 | F15: =SUM('2020'!V65) -> 0
A16: 2021 | B16: =SUM('2021'!I65) -> 516 | C16: =SUM('2021'!L65) -> 0 | D16: =SUM('2021'!N65) -> 0 | E16: =SUM('2021'!P65) -> 0 | F16: =SUM('2021'!V65) -> 0
A17: 2022 | B17: =SUM('2022'!I65) -> 0 | C17: =SUM('2022'!L65) -> 0 | D17: =SUM('2022'!N65) -> 0 | E17: =SUM('2022'!P65) -> 0 | F17: =SUM('2022'!V65) -> 0
A18: 2023 | B18: =SUM('2023'!I65) -> 0 | C18: =SUM('2023'!L65) -> 0 | D18: =SUM('2023'!N65) -> 0 | E18: =SUM('2023'!P65) -> 0 | F18: =SUM('2023'!V65) -> 0
F21: Skyldig
A22: =B3 -> Løn | C22: i perioden | F22: =SUM(B5:B18) -> 516
D24: Beregnet | E24: Á conto | F24: Skyldig
A25: Ferietillæg | C25: i perioden | D25: =SUM(C5:C19) -> 0 | E25: =-SUM('Ferietillæg - á conto'!B27:O27) -> 0 | F25: =SUM(D25+E25) -> 0
D27: Beregnet | E27: Á conto | F27: Skyldig
A28: Feriegodtgørelse | C28: i perioden | D28: =SUM(D5:D19) -> 0 | E28: =-SUM('Feriekort - á conto'!B27:O27) -> 0 | F28: =SUM(D28+E28) -> 0
A30: Særlig opsparing. | D30: Beregnet | E30: Á conto | F30: Skyldig
A31: SH-, og Feriefridagsgodtgørelse | C31: i perioden | D31: =SUM(E5:E19) -> 0 | E31: =-SUM('SO, SH og FF - á conto'!B27:O27) -> 0 | F31: =SUM(D31+E31) -> 0
D33: Beregnet | E33: Indbetalt | F33: Skyldig
A34: Pension | C34: i perioden | D34: =SUM(F5:F19) -> 0 | E34: =-SUM(Pension!B27:O27) -> 0 | F34: =SUM(D34:E34) -> 0
A36: Krav i alt | F36: =SUM(F22,F25,F28,F31,F34) -> 516

Sheet Arbejdsdagsberegner
A2: Dato start | B2: Dato slut | C2: Antal arbejdsdage i perioden
A3: 2020-08-03 | B3: 2020-08-25 | C3: =AntalArbejdsdage(A3,B3)-AntalSHdage(A3,B3) -> 17
A5: Afholdte feriedage og feriefridage | C5: 0
A7: Antal dage på arbejde | C7: =SUM(C3-C5) -> 17
B9: gns. Timer pr. dag | C9: antal arbejdstimer i alt
B10: 7.4 | C10: =SUM(C7*B10) -> 125.8
B12: Sats pr. time | C12: Lønsum i alt
B13: 150 | C13: =SUM(C10*B13) -> 18870
B15: Feriepenge
B16: 0.125 | C16: =SUM(C13*B16) -> 2358.75
B18: SH, og feriefridagsgodt.
B19: 0.099 | C19: =SUM(C13*B19) -> 1868.13
B21: Pensionsgrundlag
C22: =SUM(C13:C19) -> 23096.88
B24: A - Pension
B25: 0.0815 | C25: =SUM(C22*B25) -> 1882.39572
B27: B - Pension
B28: 0.04 | C28: =SUM(C22*B28) -> 923.8752
